Department Family,Entity,Payment Date,Expense Type,Expense Area,Supplier,Transaction Number,Amount,Invoice Description,Postal Code,"Admin,Programme or Capital Expenditure"
Food Standards Agency,Food Standards Agency,28/07/2014,Project Programme expenditure,Chemical Risk Assessment Unit,Public Health England,6087405,"500,000.00",PO 418492 CO FUNDING OF NATIONAL DIETARY AND NUTRITION SURVEY,SP4 0JG,Programme
Food Standards Agency,Food Standards Agency,30/07/2014,ASD support services,IT Service Delivery,Capita Secure Information Solutions Ltd,93773186,"296,305.85",PO 418662 JUNE CORE SERVICE CHARGE,SN14 0TW,Admin
Food Standards Agency,Food Standards Agency,04/07/2014,Rates/contrib in lieu of rates,Security & Estates,London Borough Of Camden,ARE683516514031414859200,"148,592.00",PO 418096 AVIATION HSE BUS. RATES JULY 2014 A/RE 6835165,WC1H 8NH,Admin
Food Standards Agency,Food Standards Agency,30/07/2014,Project Programme expenditure,Hygiene & Microbiology Division HoD,Public Health England,6087459,"82,212.00",PO 416894 QTRLY 1 INTERIM REPORT DEL DATE 1/7/14,NW9 5EQ,Programme
Food Standards Agency,Food Standards Agency,28/07/2014,Programme Evidence & Research Expenditure,Food & Feed Monitoring & Policy,University Of Aberdeen,GRSI/00033577,"79,615.00","FS421003, Deliverable 01/02",AB24 3FX,Programme
Food Standards Agency,Food Standards Agency,28/07/2014,Programme Evidence & Research Expenditure,Food Production Branch,Medical Research Council,MRC14097,"70,000.00",PO 409511 ESEI PHASE 2 GRANT,SN2 1ET,Programme
Food Standards Agency,Food Standards Agency,28/07/2014,Analysis of samples (non Trichinella),Operations Assurance,Animal Health and Veterinary Laboratories Agency,5000044254,"68,615.62",PO 413934 SURVEILLANCE,KT15 3NB,Programme
Food Standards Agency,Food Standards Agency,25/07/2014,Programme Evidence & Research Expenditure,Novel Food Unit,Nacionalni Institut Za Biologijo,220714,"59,344.00",FOREIGN 2014/000110,SI - 1001,Programme
Food Standards Agency,Food Standards Agency,28/07/2014,Project Programme expenditure,Chief Scientist,IFR Enterprises Ltd,INV0003684,"55,159.62",PO 418406 TOOL GENERATION,NR4 7UA,Programme
Food Standards Agency,Food Standards Agency,28/07/2014,Rent & management charges - Outside London,Scotland Admin Costs,C N R International UK Ltd,SMH1407041,"54,062.50","Rent, electricity and service charges - quarterly invoice from CNR",AB11 6NJ,Admin
Food Standards Agency,Food Standards Agency,08/07/2014,Project Programme expenditure,Analysis & Research Branch,Public Health England,6081568,"51,887.90",PO 405911 PROJECT FS111009 APRIL - JUNE 14,SP4 0JG,Programme
Food Standards Agency,Food Standards Agency,30/07/2014,Project Programme expenditure,EU Regulatory Reform Branch,The Royal Veterinary College,RES1106143232,"50,000.00",PO 416896 DELIVERABLE 1,NW1 0TV,Programme
Food Standards Agency,Food Standards Agency,28/07/2014,Programme Evidence & Research Expenditure,Contaminants Policy & Strategy Unit,Food & Environment Research Agency,F0038076,"45,000.00",PO 415472 OUTSTANDING WORK FOR 2013-2014 FS102009,YO41 1LZ,Programme
Food Standards Agency,Food Standards Agency,08/07/2014,Analysis of samples (non Trichinella),Operational Delivery,Food & Environment Research Agency,F0037640,"44,095.00",PO 417504 SAMPLE ANALYSIS 03-26/06/14 PHENYLBUTAZONE,YO41 1LZ,Programme
Food Standards Agency,Food Standards Agency,28/07/2014,Programme Evidence & Research Expenditure,Food & Feed Monitoring & Policy,University Of Aberdeen,GRSI/00033577,"42,441.00","FS421003, Deliverable 01/02",AB24 3FX,Programme
Food Standards Agency,Food Standards Agency,28/07/2014,Project Programme expenditure,Operations Local Delivery ,C E F A S,8004016,"40,448.58",VARIOUS PO'S SAMPLES JUN 14,NR33 0HT,Programme
Food Standards Agency,Food Standards Agency,14/07/2014,Programme Evidence & Research Expenditure,Contaminants HoD,C E F A S,8003964,"35,328.00",PO 414854 Q1 YEAR 2 PROEJCT C6028,NR33 0HT,Programme
Food Standards Agency,Food Standards Agency,14/07/2014,Telecomms-data networks & call charges,IT Service Delivery,Vodafone Ltd,UK10072014275,"33,789.52",GSI GCF APR-JUN 14,MK3 5JP,Admin
Food Standards Agency,Food Standards Agency,22/07/2014,Utilities,Security & Estates,E D F Energy,EDF0169,"31,008.70",INVOICE 169 JUNE '14,EX1 3UT,Admin
Food Standards Agency,Food Standards Agency,22/07/2014,Project Programme expenditure,Analysis & Research Branch,C E F A S,8003973,"30,709.80",PO 414837 QTR 1 APR-JUN F/Y 2014-15,NR33 0HT,Programme
Food Standards Agency,Food Standards Agency,22/07/2014,Programme Evidence & Research Expenditure,Contaminants Policy & Strategy Unit,Food & Environment Research Agency,F0038021,"30,000.00",PO 417004 FS102101,YO41 1LZ,Programme
Food Standards Agency,Food Standards Agency,30/07/2014,Programme Evidence & Research Expenditure,Contaminants Policy & Strategy Unit,University Of Aberdeen,GRSI00033592,"29,223.00",PO 410051 RETENTION PAYMENT,AB24 3FX,Programme
Food Standards Agency,Food Standards Agency,14/07/2014,Project Programme expenditure,Operations Local Delivery ,C E F A S,8003970,"27,000.00",PO 413441 QTR 1 APR - 30 JUN 14,NR33 0HT,Programme
Food Standards Agency,Food Standards Agency,10/07/2014,Service charges,Security & Estates,G4s Integrated Services (Uk) Ltd,M17739,"26,578.76",G4S MONTHLY CONTRACT CHARGES JUNE 14,S81 7QF,Admin
Food Standards Agency,Food Standards Agency,18/07/2014,Project Programme expenditure,Analysis & Research Branch,London School Of Economics,SIN141869,"25,204.80",PO 418677 ETIENNE W/E 8/4,WC2A 2AE,Programme
Food Standards Agency,Food Standards Agency,14/07/2014,Project Programme expenditure,Food & Feed Monitoring & Policy,Hall Mark Meat Hygiene Ltd,SI0000710,"25,014.00","FS315020, Sampling Visits June 2014",GL6 9EN,Programme
Food Standards Agency,Food Standards Agency,22/07/2014,Civil service HR,HR,Cabinet Office,250010274,"24,957.17",PO 417965 CIVIL SERVICE HR EXPERT SERVICES 14/15,CF14 3UW,Admin
Food Standards Agency,Food Standards Agency,24/07/2014,Project Programme expenditure,Analysis & Research Branch,Mintel International Group Ltd,M17329,"24,800.00",PO 418711 FOOD SERVICE & REPORTS,EC4V 6RN,Programme
Food Standards Agency,Food Standards Agency,28/07/2014,Project Programme expenditure,Operations Local Delivery ,C E F A S,8004016,"23,976.00",VARIOUS PO'S SAMPLES JUN 14,NR33 0HT,Programme
Food Standards Agency,Food Standards Agency,10/07/2014,Fixed Assets Additions,Operations Assurance,Capita Secure Information Solutions Ltd,93682817,"23,869.84",PO 417063 FSA-413 K2,SN14 0TW,Capital
Food Standards Agency,Food Standards Agency,02/07/2014,ASD support services,Finance Director & Branch,Shared Services Connected Ltd,100000304,"23,147.18",Po 415746 FIXED MONTHLY CHARGE JUN 2014,HP2 7AH,Admin
Food Standards Agency,Food Standards Agency,28/07/2014,ASD support services,Finance Director & Branch,Shared Services Connected Ltd,100000354,"23,147.18",Po 415746 PROJECT INVOICING FIXED MONTHLY CHARGE JUL 2014,HP2 7AH,Admin
Food Standards Agency,Food Standards Agency,28/07/2014,Project Programme expenditure,Operations Local Delivery ,C E F A S,8004016,"21,913.00",VARIOUS PO'S SAMPLES JUN 14,NR33 0HT,Programme
Food Standards Agency,Food Standards Agency,16/07/2014,Programme Evidence & Research Expenditure,Contaminants Policy & Strategy Unit,Premier Analytical Services,29801,"21,560.00",PO 401206 PROJECT COSTS,HP12 3QR,Programme
Food Standards Agency,Food Standards Agency,08/07/2014,Project Programme expenditure,Strategic Stakeholder & Consumer Engagement,Speakeasy Productions Ltd,5845,"19,026.00","FS324005, Royal Highland Show 2014 - balance as agreed",PH1 4PX,Programme
Food Standards Agency,Food Standards Agency,18/07/2014,Laundry,Operational Delivery,Apparelmaster UK Ltd,54814,"17,850.22",PO 417042 REGION 546 NEW CONTRACT 25/05/14-28/06/14,PR2 9ZD,Programme
Food Standards Agency,Food Standards Agency,10/07/2014,Security,Security & Estates,G4s Integrated Services (Uk) Ltd,M17739,"17,497.76",G4S MONTHLY CONTRACT CHARGES JUNE 14,S81 7QF,Admin
Food Standards Agency,Food Standards Agency,08/07/2014,Project Programme expenditure,Strategic Stakeholder & Consumer Engagement,Speakeasy Productions Ltd,5845,"16,467.72","FS324005, Royal Highland Show 2014 - balance as agreed",PH1 4PX,Programme
Food Standards Agency,Food Standards Agency,30/07/2014,Fixed Assets Additions,IT Strategy,Capita Secure Information Solutions Ltd,93792688,"16,435.69",PO 414917 EDRMS PROJECT,SN14 0TW,Capital
Food Standards Agency,Food Standards Agency,10/07/2014,Service charges,Security & Estates,G4s Integrated Services (Uk) Ltd,M17739,"16,051.21",G4S MONTHLY CONTRACT CHARGES JUNE 14,S81 7QF,Admin
Food Standards Agency,Food Standards Agency,02/07/2014,ASD support services,IT Strategy,Capita Secure Information Solutions Ltd,93682771,"14,093.00",PO 417065 CHARGES PHASE 3 MILESTONE 1,SN14 0TW,Admin
Food Standards Agency,Food Standards Agency,28/07/2014,Analysis of samples (non Trichinella),Operations Assurance,Animal Health and Veterinary Laboratories Agency,5000044254,"13,723.12",PO 413934 SURVEILLANCE,KT15 3NB,Programme
Food Standards Agency,Food Standards Agency,08/07/2014,Project Programme expenditure,Strategic Stakeholder & Consumer Engagement,Speakeasy Productions Ltd,5845,"12,440.00","FS324005, Royal Highland Show 2014 - balance as agreed",PH1 4PX,Programme
Food Standards Agency,Food Standards Agency,08/07/2014,Project Programme expenditure,Strategic Stakeholder & Consumer Engagement,Speakeasy Productions Ltd,5845,"12,175.45","FS324005, Royal Highland Show 2014 - balance as agreed",PH1 4PX,Programme
Food Standards Agency,Food Standards Agency,28/07/2014,Service charges,Scotland Admin Costs,C N R International UK Ltd,SMH1407041,"12,089.26","Rent, electricity and service charges - quarterly invoice from CNR",AB11 6NJ,Admin
Food Standards Agency,Food Standards Agency,30/07/2014,Staff training: Regional and HQ Administration,IT Strategy,Capita Secure Information Solutions Ltd,93792688,"11,891.88",PO 414917 EDRMS PROJECT,SN14 0TW,Admin
Food Standards Agency,Food Standards Agency,28/07/2014,Rent & management charges - Outside London,Scotland Admin Costs,C N R International UK Ltd,SMH1407041,"10,812.50","Rent, electricity and service charges - quarterly invoice from CNR",AB11 6NJ,Admin
Food Standards Agency,Food Standards Agency,02/07/2014,Fixed Assets Additions,IT Strategy,Capita Secure Information Solutions Ltd,93682771,"9,561.00",PO 417065 CHARGES PHASE 3 MILESTONE 1,SN14 0TW,Capital
Food Standards Agency,Food Standards Agency,18/07/2014,Laundry,Operational Delivery,Apparelmaster UK Ltd,54814,"9,412.00",PO 417042 REGION 546 NEW CONTRACT 25/05/14-28/06/14,PR2 9ZD,Programme
Food Standards Agency,Food Standards Agency,08/07/2014,Analysis of samples (non Trichinella),Operational Delivery,Food & Environment Research Agency,F0037640,"8,819.00",PO 417504 SAMPLE ANALYSIS 03-26/06/14 PHENYLBUTAZONE,YO41 1LZ,Programme
Food Standards Agency,Food Standards Agency,02/07/2014,Fixed Assets Additions,IT Strategy,Capita Secure Information Solutions Ltd,93682771,"8,171.00",PO 417065 CHARGES PHASE 3 MILESTONE 1,SN14 0TW,Capital
Food Standards Agency,Food Standards Agency,24/07/2014,Fixed Assets Additions,IT Strategy,Capita Secure Information Solutions Ltd,93604462,"7,668.00",PO 415712 FSA-366 PSN STAGE 2,SN14 0TW,Capital
Food Standards Agency,Food Standards Agency,14/07/2014,Telecomms-data networks & call charges,IT Service Delivery,Vodafone Ltd,UK10072014275,"6,757.90",GSI GCF APR-JUN 14,MK3 5JP,Admin
Food Standards Agency,Food Standards Agency,24/07/2014,Fixed Assets Additions,IT Strategy,Capita Secure Information Solutions Ltd,93604462,"6,390.00",PO 415712 FSA-366 PSN STAGE 2,SN14 0TW,Capital
Food Standards Agency,Food Standards Agency,24/07/2014,Fixed Assets Additions,IT Strategy,Capita Secure Information Solutions Ltd,93604462,"6,390.00",PO 415712 FSA-366 PSN STAGE 2,SN14 0TW,Capital
Food Standards Agency,Food Standards Agency,22/07/2014,Utilities,Security & Estates,E D F Energy,EDF0169,"6,201.74",INVOICE 169 JUNE '14,EX1 3UT,Admin
Food Standards Agency,Food Standards Agency,22/07/2014,Programme Evidence & Research Expenditure,Contaminants Policy & Strategy Unit,Food & Environment Research Agency,F0038021,"6,000.00",PO 417004 FS102101,YO41 1LZ,Programme
Food Standards Agency,Food Standards Agency,24/07/2014,Fixed Assets Additions,IT Strategy,Capita Secure Information Solutions Ltd,93604462,"5,121.00",PO 415712 FSA-366 PSN STAGE 2,SN14 0TW,Capital
Food Standards Agency,Food Standards Agency,22/07/2014,Civil service HR,HR,Cabinet Office,250010274,"4,991.43",PO 417965 CIVIL SERVICE HR EXPERT SERVICES 14/15,CF14 3UW,Admin
Food Standards Agency,Food Standards Agency,02/07/2014,ASD support services,IT Strategy,Capita Secure Information Solutions Ltd,93682771,"4,983.00",PO 417065 CHARGES PHASE 3 MILESTONE 1,SN14 0TW,Admin
Food Standards Agency,Food Standards Agency,24/07/2014,Project Programme expenditure,Analysis & Research Branch,Mintel International Group Ltd,M17329,"4,960.00",PO 418711 FOOD SERVICE & REPORTS,EC4V 6RN,Programme
Food Standards Agency,Food Standards Agency,10/07/2014,Fixed Assets Additions,Operations Assurance,Capita Secure Information Solutions Ltd,93682817,"4,950.00",PO 417063 FSA-413 K2,SN14 0TW,Capital
Food Standards Agency,Food Standards Agency,10/07/2014,Fixed Assets Additions,Operations Assurance,Capita Secure Information Solutions Ltd,93682817,"4,773.97",PO 417063 FSA-413 K2,SN14 0TW,Capital
Food Standards Agency,Food Standards Agency,02/07/2014,Fixed Assets Additions,IT Strategy,Capita Secure Information Solutions Ltd,93682771,"4,641.00",PO 417065 CHARGES PHASE 3 MILESTONE 1,SN14 0TW,Capital
Food Standards Agency,Food Standards Agency,02/07/2014,Fixed Assets Additions,IT Strategy,Capita Secure Information Solutions Ltd,93682771,"4,630.00",PO 417065 CHARGES PHASE 3 MILESTONE 1,SN14 0TW,Capital
Food Standards Agency,Food Standards Agency,16/07/2014,Programme Evidence & Research Expenditure,Contaminants Policy & Strategy Unit,Premier Analytical Services,29801,"4,312.00",PO 401206 PROJECT COSTS,HP12 3QR,Programme
Food Standards Agency,Food Standards Agency,24/07/2014,Fixed Assets Additions,IT Strategy,Capita Secure Information Solutions Ltd,93604462,"3,597.30",PO 415712 FSA-366 PSN STAGE 2,SN14 0TW,Capital
Food Standards Agency,Food Standards Agency,18/07/2014,Laundry,Operational Delivery,Apparelmaster UK Ltd,54814,"3,570.04",PO 417042 REGION 546 NEW CONTRACT 25/05/14-28/06/14,PR2 9ZD,Programme
Food Standards Agency,Food Standards Agency,18/07/2014,Laundry,Operational Delivery,Apparelmaster UK Ltd,54814,"3,570.04",PO 417042 REGION 546 NEW CONTRACT 25/05/14-28/06/14,PR2 9ZD,Programme
Food Standards Agency,Food Standards Agency,30/07/2014,Fixed Assets Additions,IT Strategy,Capita Secure Information Solutions Ltd,93792688,"3,287.14",PO 414917 EDRMS PROJECT,SN14 0TW,Capital
Food Standards Agency,Food Standards Agency,24/07/2014,Fixed Assets Additions,IT Strategy,Capita Secure Information Solutions Ltd,93604462,"3,195.00",PO 415712 FSA-366 PSN STAGE 2,SN14 0TW,Capital
Food Standards Agency,Food Standards Agency,24/07/2014,Fixed Assets Additions,IT Strategy,Capita Secure Information Solutions Ltd,93604462,"3,105.00",PO 415712 FSA-366 PSN STAGE 2,SN14 0TW,Capital
Food Standards Agency,Food Standards Agency,02/07/2014,ASD support services,IT Strategy,Capita Secure Information Solutions Ltd,93682771,"2,964.50",PO 417065 CHARGES PHASE 3 MILESTONE 1,SN14 0TW,Admin
Food Standards Agency,Food Standards Agency,08/07/2014,Project Programme expenditure,Strategic Stakeholder & Consumer Engagement,Speakeasy Productions Ltd,5845,"2,906.36","FS324005, Royal Highland Show 2014 - balance as agreed",PH1 4PX,Programme
Food Standards Agency,Food Standards Agency,16/07/2014,Travel UK ,Operational Delivery,Redfern Travel Ltd,85739,"2,815.24",REDFERN TRAVEL INVOICE WEEK 27,BD1 3AZ,Programme
Food Standards Agency,Food Standards Agency,02/07/2014,Subsistence UK,Operational Delivery,Redfern Travel Ltd,83351,"2,766.04",REDFERN TRAVEL INVOICE WEEK 25,BD1 3AZ,Programme
Food Standards Agency,Food Standards Agency,30/07/2014,ASD support services,IT Service Delivery,Capita Secure Information Solutions Ltd,93773186,"2,719.08",PO 418662 JUNE CORE SERVICE CHARGE,SN14 0TW,Admin
Food Standards Agency,Food Standards Agency,08/07/2014,Travel UK ,Operational Delivery,Redfern Travel Ltd,83705,"2,557.14",REDFERN TRAVEL INVOICE WEEK 26,BD1 3AZ,Programme
Food Standards Agency,Food Standards Agency,28/07/2014,Travel UK ,Operations Assurance,Redfern Travel Ltd,85739,"2,535.98",REDFERN TRAVEL INVOICE WEEK 29,BD1 3AZ,Programme
Food Standards Agency,Food Standards Agency,08/07/2014,Project Programme expenditure,Strategic Stakeholder & Consumer Engagement,Speakeasy Productions Ltd,5845,"2,469.16","FS324005, Royal Highland Show 2014 - balance as agreed",PH1 4PX,Programme
Food Standards Agency,Food Standards Agency,10/07/2014,ASD support services,Operations Assurance,Capita Secure Information Solutions Ltd,93682817,"2,406.00",PO 417063 FSA-413 K2,SN14 0TW,Programme
Food Standards Agency,Food Standards Agency,30/07/2014,Staff training: Regional and HQ Administration,IT Strategy,Capita Secure Information Solutions Ltd,93792688,"2,378.38",PO 414917 EDRMS PROJECT,SN14 0TW,Admin
Food Standards Agency,Food Standards Agency,16/07/2014,Travel UK ,Finance Director & Branch,Redfern Travel Ltd,85739,"2,184.98",REDFERN TRAVEL INVOICE WEEK 27,BD1 3AZ,Admin
Food Standards Agency,Food Standards Agency,08/07/2014,Subsistence UK,FSA Board,Redfern Travel Ltd,83705,"2,032.28",REDFERN TRAVEL INVOICE WEEK 26,BD1 3AZ,Admin
Food Standards Agency,Food Standards Agency,28/07/2014,Subsistence UK,Operational Delivery,Redfern Travel Ltd,85739,"2,008.20",REDFERN TRAVEL INVOICE WEEK 29,BD1 3AZ,Programme
Food Standards Agency,Food Standards Agency,16/07/2014,Travel UK ,Planning and Performance,Redfern Travel Ltd,85739,"1,998.28",REDFERN TRAVEL INVOICE WEEK 27,BD1 3AZ,Admin
Food Standards Agency,Food Standards Agency,02/07/2014,Travel UK ,Operations Local Delivery ,Redfern Travel Ltd,83351,"1,994.61",REDFERN TRAVEL INVOICE WEEK 25,BD1 3AZ,Admin
Food Standards Agency,Food Standards Agency,02/07/2014,Travel UK ,Operational Delivery,Redfern Travel Ltd,83351,"1,941.42",REDFERN TRAVEL INVOICE WEEK 25,BD1 3AZ,Programme
Food Standards Agency,Food Standards Agency,16/07/2014,Subsistence UK,Operational Delivery,Redfern Travel Ltd,85739,"1,917.83",REDFERN TRAVEL INVOICE WEEK 27,BD1 3AZ,Programme
Food Standards Agency,Food Standards Agency,02/07/2014,Fixed Assets Additions,IT Strategy,Capita Secure Information Solutions Ltd,93682771,"1,912.20",PO 417065 CHARGES PHASE 3 MILESTONE 1,SN14 0TW,Capital
Food Standards Agency,Food Standards Agency,10/07/2014,Service charges,Security & Estates,G4s Integrated Services (Uk) Ltd,M17739,"1,893.34",G4S MONTHLY CONTRACT CHARGES JUNE 14,S81 7QF,Admin
Food Standards Agency,Food Standards Agency,18/07/2014,Laundry,Operational Delivery,Apparelmaster UK Ltd,54814,"1,882.40",PO 417042 REGION 546 NEW CONTRACT 25/05/14-28/06/14,PR2 9ZD,Programme
Food Standards Agency,Food Standards Agency,08/07/2014,Travel UK ,HR,Redfern Travel Ltd,83705,"1,821.68",REDFERN TRAVEL INVOICE WEEK 26,BD1 3AZ,Admin
Food Standards Agency,Food Standards Agency,02/07/2014,Travel UK ,Finance Director & Branch,Redfern Travel Ltd,83351,"1,748.54",REDFERN TRAVEL INVOICE WEEK 25,BD1 3AZ,Admin
Food Standards Agency,Food Standards Agency,02/07/2014,Fixed Assets Additions,IT Strategy,Capita Secure Information Solutions Ltd,93682771,"1,650.00",PO 417065 CHARGES PHASE 3 MILESTONE 1,SN14 0TW,Capital
Food Standards Agency,Food Standards Agency,02/07/2014,Fixed Assets Additions,IT Strategy,Capita Secure Information Solutions Ltd,93682771,"1,634.20",PO 417065 CHARGES PHASE 3 MILESTONE 1,SN14 0TW,Capital
Food Standards Agency,Food Standards Agency,24/07/2014,Fixed Assets Additions,IT Strategy,Capita Secure Information Solutions Ltd,93604462,"1,625.40",PO 415712 FSA-366 PSN STAGE 2,SN14 0TW,Capital
Food Standards Agency,Food Standards Agency,28/07/2014,Utilities,Scotland Admin Costs,C N R International UK Ltd,SMH1407041,"1,590.79","Rent, electricity and service charges - quarterly invoice from CNR",AB11 6NJ,Admin
Food Standards Agency,Food Standards Agency,24/07/2014,Fixed Assets Additions,IT Strategy,Capita Secure Information Solutions Ltd,93604462,"1,533.60",PO 415712 FSA-366 PSN STAGE 2,SN14 0TW,Capital
Food Standards Agency,Food Standards Agency,28/07/2014,Subsistence UK,Operations Assurance - Admin,Redfern Travel Ltd,85739,"1,501.71",REDFERN TRAVEL INVOICE WEEK 29,BD1 3AZ,Admin
Food Standards Agency,Food Standards Agency,28/07/2014,Utilities,Scotland Admin Costs,C N R International UK Ltd,SMH1407041,"1,468.25","Rent, electricity and service charges - quarterly invoice from CNR",AB11 6NJ,Admin
Food Standards Agency,Food Standards Agency,28/07/2014,Travel UK ,Operations Local Delivery ,Redfern Travel Ltd,85739,"1,401.99",REDFERN TRAVEL INVOICE WEEK 29,BD1 3AZ,Admin
Food Standards Agency,Food Standards Agency,28/07/2014,Subsistence UK,Operations Assurance,Redfern Travel Ltd,85739,"1,398.48",REDFERN TRAVEL INVOICE WEEK 29,BD1 3AZ,Programme
Food Standards Agency,Food Standards Agency,28/07/2014,Travel UK ,Planning and Performance,Redfern Travel Ltd,85739,"1,357.78",REDFERN TRAVEL INVOICE WEEK 29,BD1 3AZ,Admin
Food Standards Agency,Food Standards Agency,02/07/2014,Travel UK ,Operations Assurance,Redfern Travel Ltd,83351,"1,344.34",REDFERN TRAVEL INVOICE WEEK 25,BD1 3AZ,Programme
Food Standards Agency,Food Standards Agency,08/07/2014,Subsistence UK,Operational Delivery,Redfern Travel Ltd,83705,"1,339.76",REDFERN TRAVEL INVOICE WEEK 26,BD1 3AZ,Programme
Food Standards Agency,Food Standards Agency,08/07/2014,Project Programme expenditure,Strategic Stakeholder & Consumer Engagement,Speakeasy Productions Ltd,5845,"1,293.31","FS324005, Royal Highland Show 2014 - balance as agreed",PH1 4PX,Programme
Food Standards Agency,Food Standards Agency,08/07/2014,Travel UK ,Finance Director & Branch,Redfern Travel Ltd,83705,"1,289.16",REDFERN TRAVEL INVOICE WEEK 26,BD1 3AZ,Admin
Food Standards Agency,Food Standards Agency,16/07/2014,Travel UK ,Operations Assurance,Redfern Travel Ltd,85739,"1,287.70",REDFERN TRAVEL INVOICE WEEK 27,BD1 3AZ,Programme
Food Standards Agency,Food Standards Agency,24/07/2014,Fixed Assets Additions,IT Strategy,Capita Secure Information Solutions Ltd,93604462,"1,278.00",PO 415712 FSA-366 PSN STAGE 2,SN14 0TW,Capital
Food Standards Agency,Food Standards Agency,24/07/2014,Fixed Assets Additions,IT Strategy,Capita Secure Information Solutions Ltd,93604462,"1,278.00",PO 415712 FSA-366 PSN STAGE 2,SN14 0TW,Capital
Food Standards Agency,Food Standards Agency,02/07/2014,Travel UK ,Planning and Performance,Redfern Travel Ltd,83351,"1,259.75",REDFERN TRAVEL INVOICE WEEK 25,BD1 3AZ,Admin
Food Standards Agency,Food Standards Agency,28/07/2014,Travel UK ,Finance Director & Branch,Redfern Travel Ltd,85739,"1,257.56",REDFERN TRAVEL INVOICE WEEK 29,BD1 3AZ,Admin
Food Standards Agency,Food Standards Agency,16/07/2014,Subsistence UK,Operations Assurance,Redfern Travel Ltd,85739,"1,185.27",REDFERN TRAVEL INVOICE WEEK 27,BD1 3AZ,Programme
Food Standards Agency,Food Standards Agency,08/07/2014,Subsistence UK,Internal Audit,Redfern Travel Ltd,83705,"1,144.23",REDFERN TRAVEL INVOICE WEEK 26,BD1 3AZ,Admin
Food Standards Agency,Food Standards Agency,28/07/2014,Travel UK ,HR,Redfern Travel Ltd,85739,"1,135.62",REDFERN TRAVEL INVOICE WEEK 29,BD1 3AZ,Admin
Food Standards Agency,Food Standards Agency,28/07/2014,Subsistence UK,Area 4 North East England - Cluster 44,Redfern Travel Ltd,85739,"1,132.74",REDFERN TRAVEL INVOICE WEEK 29,BD1 3AZ,Programme
Food Standards Agency,Food Standards Agency,16/07/2014,Travel UK ,Comms Directors Office,Redfern Travel Ltd,85739,"1,099.74",REDFERN TRAVEL INVOICE WEEK 27,BD1 3AZ,Admin
Food Standards Agency,Food Standards Agency,02/07/2014,Travel UK ,HR,Redfern Travel Ltd,83351,"1,085.28",REDFERN TRAVEL INVOICE WEEK 25,BD1 3AZ,Admin
Food Standards Agency,Food Standards Agency,16/07/2014,Travel UK ,HR,Redfern Travel Ltd,85739,"1,059.02",REDFERN TRAVEL INVOICE WEEK 27,BD1 3AZ,Admin
Food Standards Agency,Food Standards Agency,16/07/2014,Travel UK ,Better Regulations & Sustainable Development,Redfern Travel Ltd,85739,"1,053.00",REDFERN TRAVEL INVOICE WEEK 27,BD1 3AZ,Admin
Food Standards Agency,Food Standards Agency,24/07/2014,Fixed Assets Additions,IT Strategy,Capita Secure Information Solutions Ltd,93604462,"1,024.20",PO 415712 FSA-366 PSN STAGE 2,SN14 0TW,Capital
Food Standards Agency,Food Standards Agency,02/07/2014,Subsistence UK,Operations Assurance,Redfern Travel Ltd,83351,"1,005.02",REDFERN TRAVEL INVOICE WEEK 25,BD1 3AZ,Programme
Food Standards Agency,Food Standards Agency,10/07/2014,Office machinery: hire,Security & Estates,G4s Integrated Services (Uk) Ltd,M17739,"1,000.00",G4S MONTHLY CONTRACT CHARGES JUNE 14,S81 7QF,Admin
Food Standards Agency,Food Standards Agency,08/07/2014,Travel UK ,Consumer Protection & Commercial Support,Redfern Travel Ltd,83705,998.65,REDFERN TRAVEL INVOICE WEEK 26,BD1 3AZ,Admin
Food Standards Agency,Food Standards Agency,02/07/2014,ASD support services,IT Strategy,Capita Secure Information Solutions Ltd,93682771,996.60,PO 417065 CHARGES PHASE 3 MILESTONE 1,SN14 0TW,Admin
Food Standards Agency,Food Standards Agency,10/07/2014,Fixed Assets Additions,Operations Assurance,Capita Secure Information Solutions Ltd,93682817,990.00,PO 417063 FSA-413 K2,SN14 0TW,Capital
Food Standards Agency,Food Standards Agency,28/07/2014,Travel UK ,Operational Delivery,Redfern Travel Ltd,85739,950.55,REDFERN TRAVEL INVOICE WEEK 29,BD1 3AZ,Programme
Food Standards Agency,Food Standards Agency,02/07/2014,Travel UK ,Comms Directors Office,Redfern Travel Ltd,83351,931.97,REDFERN TRAVEL INVOICE WEEK 25,BD1 3AZ,Admin
Food Standards Agency,Food Standards Agency,02/07/2014,Fixed Assets Additions,IT Strategy,Capita Secure Information Solutions Ltd,93682771,928.20,PO 417065 CHARGES PHASE 3 MILESTONE 1,SN14 0TW,Capital
Food Standards Agency,Food Standards Agency,02/07/2014,Fixed Assets Additions,IT Strategy,Capita Secure Information Solutions Ltd,93682771,926.00,PO 417065 CHARGES PHASE 3 MILESTONE 1,SN14 0TW,Capital
Food Standards Agency,Food Standards Agency,02/07/2014,Travel UK ,IT Service Delivery,Redfern Travel Ltd,83351,841.35,REDFERN TRAVEL INVOICE WEEK 25,BD1 3AZ,Admin
Food Standards Agency,Food Standards Agency,28/07/2014,Subsistence EC,Official Feed & Foods Controls Policy Unit,Redfern Travel Ltd,85739,804.84,REDFERN TRAVEL INVOICE WEEK 29,BD1 3AZ,Admin
Food Standards Agency,Food Standards Agency,16/07/2014,Subsistence UK,Operations Assurance - Admin,Redfern Travel Ltd,85739,762.24,REDFERN TRAVEL INVOICE WEEK 27,BD1 3AZ,Admin
Food Standards Agency,Food Standards Agency,24/07/2014,Fixed Assets Additions,IT Strategy,Capita Secure Information Solutions Ltd,93604462,719.46,PO 415712 FSA-366 PSN STAGE 2,SN14 0TW,Capital
Food Standards Agency,Food Standards Agency,08/07/2014,Subsistence UK,Operations Assurance,Redfern Travel Ltd,83705,718.44,REDFERN TRAVEL INVOICE WEEK 26,BD1 3AZ,Programme
Food Standards Agency,Food Standards Agency,08/07/2014,Travel UK ,Planning and Performance,Redfern Travel Ltd,83705,703.12,REDFERN TRAVEL INVOICE WEEK 26,BD1 3AZ,Admin
Food Standards Agency,Food Standards Agency,02/07/2014,Subsistence UK,Planning and Performance,Redfern Travel Ltd,83351,661.56,REDFERN TRAVEL INVOICE WEEK 25,BD1 3AZ,Admin
Food Standards Agency,Food Standards Agency,16/07/2014,Subsistence UK,Animal Feed     ,Redfern Travel Ltd,85739,657.72,REDFERN TRAVEL INVOICE WEEK 27,BD1 3AZ,Admin
Food Standards Agency,Food Standards Agency,08/07/2014,Travel UK ,Operations Assurance - Admin,Redfern Travel Ltd,83705,654.13,REDFERN TRAVEL INVOICE WEEK 26,BD1 3AZ,Admin
Food Standards Agency,Food Standards Agency,16/07/2014,Subsistence UK,Finance Director & Branch,Redfern Travel Ltd,85739,648.36,REDFERN TRAVEL INVOICE WEEK 27,BD1 3AZ,Admin
Food Standards Agency,Food Standards Agency,24/07/2014,Fixed Assets Additions,IT Strategy,Capita Secure Information Solutions Ltd,93604462,639.00,PO 415712 FSA-366 PSN STAGE 2,SN14 0TW,Capital
Food Standards Agency,Food Standards Agency,16/07/2014,Travel UK ,Animal Feed     ,Redfern Travel Ltd,85739,636.78,REDFERN TRAVEL INVOICE WEEK 27,BD1 3AZ,Admin
Food Standards Agency,Food Standards Agency,08/07/2014,Travel UK ,Operations Local Delivery ,Redfern Travel Ltd,83705,633.81,REDFERN TRAVEL INVOICE WEEK 26,BD1 3AZ,Admin
Food Standards Agency,Food Standards Agency,28/07/2014,Travel UK ,IT Information & Knowledge Management,Redfern Travel Ltd,85739,627.91,REDFERN TRAVEL INVOICE WEEK 29,BD1 3AZ,Admin
Food Standards Agency,Food Standards Agency,28/07/2014,Subsistence UK,Area 5 South West England - Cluster 57,Redfern Travel Ltd,85739,622.89,REDFERN TRAVEL INVOICE WEEK 29,BD1 3AZ,Programme
Food Standards Agency,Food Standards Agency,08/07/2014,Travel UK ,Area 5 South West England - Cluster 57,Redfern Travel Ltd,83705,622.65,REDFERN TRAVEL INVOICE WEEK 26,BD1 3AZ,Programme
Food Standards Agency,Food Standards Agency,24/07/2014,Fixed Assets Additions,IT Strategy,Capita Secure Information Solutions Ltd,93604462,621.00,PO 415712 FSA-366 PSN STAGE 2,SN14 0TW,Capital
Food Standards Agency,Food Standards Agency,16/07/2014,Travel UK ,Consumer Protection & Commercial Support,Redfern Travel Ltd,85739,618.82,REDFERN TRAVEL INVOICE WEEK 27,BD1 3AZ,Admin
Food Standards Agency,Food Standards Agency,08/07/2014,International Subsistence,Contaminants Policy & Strategy Unit,Redfern Travel Ltd,83705,597.09,REDFERN TRAVEL INVOICE WEEK 26,BD1 3AZ,Admin
Food Standards Agency,Food Standards Agency,02/07/2014,ASD support services,IT Strategy,Capita Secure Information Solutions Ltd,93682771,592.90,PO 417065 CHARGES PHASE 3 MILESTONE 1,SN14 0TW,Admin
Food Standards Agency,Food Standards Agency,02/07/2014,Travel UK ,Area 2 Wales - Cluster 23,Redfern Travel Ltd,83351,565.27,REDFERN TRAVEL INVOICE WEEK 25,BD1 3AZ,Programme
Food Standards Agency,Food Standards Agency,28/07/2014,Travel UK ,Animal Feed     ,Redfern Travel Ltd,85739,549.70,REDFERN TRAVEL INVOICE WEEK 29,BD1 3AZ,Admin
Food Standards Agency,Food Standards Agency,08/07/2014,Travel UK ,Operations Assurance,Redfern Travel Ltd,83705,546.25,REDFERN TRAVEL INVOICE WEEK 26,BD1 3AZ,Programme
Food Standards Agency,Food Standards Agency,28/07/2014,Travel UK ,Area 1 Scotland - Cluster 15,Redfern Travel Ltd,85739,544.70,REDFERN TRAVEL INVOICE WEEK 29,BD1 3AZ,Programme
Food Standards Agency,Food Standards Agency,16/07/2014,Subsistence UK,Operations Local Delivery ,Redfern Travel Ltd,85739,539.57,REDFERN TRAVEL INVOICE WEEK 27,BD1 3AZ,Admin
Food Standards Agency,Food Standards Agency,08/07/2014,Travel UK ,Animal Feed     ,Redfern Travel Ltd,83705,533.29,REDFERN TRAVEL INVOICE WEEK 26,BD1 3AZ,Admin
Food Standards Agency,Food Standards Agency,28/07/2014,Travel UK ,Consumer Protection & Commercial Support,Redfern Travel Ltd,85739,528.73,REDFERN TRAVEL INVOICE WEEK 29,BD1 3AZ,Admin
Food Standards Agency,Food Standards Agency,16/07/2014,Subsistence EC,Animal Feed Branch,Redfern Travel Ltd,85739,527.69,REDFERN TRAVEL INVOICE WEEK 27,BD1 3AZ,Admin
Food Standards Agency,Food Standards Agency,08/07/2014,Subsistence UK,Official Feed & Foods Controls Policy Unit,Redfern Travel Ltd,83705,515.46,REDFERN TRAVEL INVOICE WEEK 26,BD1 3AZ,Admin
Food Standards Agency,Food Standards Agency,28/07/2014,Travel UK ,Operations Assurance - Admin,Redfern Travel Ltd,85739,510.22,REDFERN TRAVEL INVOICE WEEK 29,BD1 3AZ,Admin
Food Standards Agency,Food Standards Agency,02/07/2014,Subsistence UK,Non Meat Field Ops,Redfern Travel Ltd,83351,504.22,REDFERN TRAVEL INVOICE WEEK 25,BD1 3AZ,Programme
Food Standards Agency,Food Standards Agency,16/07/2014,Travel UK ,European & International Strategy,Redfern Travel Ltd,85739,500.87,REDFERN TRAVEL INVOICE WEEK 27,BD1 3AZ,Admin
Food Standards Agency,Food Standards Agency,16/07/2014,Travel UK ,Operations Assurance - Admin,Redfern Travel Ltd,85739,490.70,REDFERN TRAVEL INVOICE WEEK 27,BD1 3AZ,Admin
Food Standards Agency,Food Standards Agency,02/07/2014,Travel UK ,Animal Feed     ,Redfern Travel Ltd,83351,489.25,REDFERN TRAVEL INVOICE WEEK 25,BD1 3AZ,Admin
Food Standards Agency,Food Standards Agency,10/07/2014,ASD support services,Operations Assurance,Capita Secure Information Solutions Ltd,93682817,481.20,PO 417063 FSA-413 K2,SN14 0TW,Programme
Food Standards Agency,Food Standards Agency,02/07/2014,Travel UK ,Food Hygiene Policy Branch,Redfern Travel Ltd,83351,479.80,REDFERN TRAVEL INVOICE WEEK 25,BD1 3AZ,Admin
Food Standards Agency,Food Standards Agency,02/07/2014,Travel UK ,Non Meat Field Ops,Redfern Travel Ltd,83351,479.33,REDFERN TRAVEL INVOICE WEEK 25,BD1 3AZ,Programme
Food Standards Agency,Food Standards Agency,02/07/2014,ASD support services,IT Strategy,Capita Secure Information Solutions Ltd,93682771,471.50,PO 417065 CHARGES PHASE 3 MILESTONE 1,SN14 0TW,Admin
Food Standards Agency,Food Standards Agency,28/07/2014,Travel UK ,Chair & Deputy Chair,Redfern Travel Ltd,85739,464.29,REDFERN TRAVEL INVOICE WEEK 29,BD1 3AZ,Admin
Food Standards Agency,Food Standards Agency,02/07/2014,Travel UK ,Consumer Protection & Commercial Support,Redfern Travel Ltd,83351,462.51,REDFERN TRAVEL INVOICE WEEK 25,BD1 3AZ,Admin
Food Standards Agency,Food Standards Agency,28/07/2014,Subsistence UK,Planning and Performance,Redfern Travel Ltd,85739,455.68,REDFERN TRAVEL INVOICE WEEK 29,BD1 3AZ,Admin
Food Standards Agency,Food Standards Agency,28/07/2014,Subsistence UK,Legal Branch A,Redfern Travel Ltd,85739,455.39,REDFERN TRAVEL INVOICE WEEK 29,BD1 3AZ,Admin
Food Standards Agency,Food Standards Agency,02/07/2014,Travel UK ,Operations Assurance - Admin,Redfern Travel Ltd,83351,447.08,REDFERN TRAVEL INVOICE WEEK 25,BD1 3AZ,Admin
Food Standards Agency,Food Standards Agency,08/07/2014,Travel UK ,Comms Directors Office,Redfern Travel Ltd,83705,442.36,REDFERN TRAVEL INVOICE WEEK 26,BD1 3AZ,Admin
Food Standards Agency,Food Standards Agency,16/07/2014,Travel UK ,Area 1 Scotland - Cluster 11,Redfern Travel Ltd,85739,424.32,REDFERN TRAVEL INVOICE WEEK 27,BD1 3AZ,Programme
Food Standards Agency,Food Standards Agency,02/07/2014,Travel UK ,Analysis & Research Branch,Redfern Travel Ltd,83351,419.31,REDFERN TRAVEL INVOICE WEEK 25,BD1 3AZ,Admin
Food Standards Agency,Food Standards Agency,02/07/2014,Travel UK ,Directorate Support Unit,Redfern Travel Ltd,83351,418.72,REDFERN TRAVEL INVOICE WEEK 25,BD1 3AZ,Admin
Food Standards Agency,Food Standards Agency,08/07/2014,Subsistence UK,Operations Assurance - Admin,Redfern Travel Ltd,83705,402.99,REDFERN TRAVEL INVOICE WEEK 26,BD1 3AZ,Admin
Food Standards Agency,Food Standards Agency,02/07/2014,Subsistence EC,Better Regulations & Sustainable Development,Redfern Travel Ltd,83351,402.80,REDFERN TRAVEL INVOICE WEEK 25,BD1 3AZ,Admin
Food Standards Agency,Food Standards Agency,08/07/2014,Subsistence UK,Operations Local Delivery ,Redfern Travel Ltd,83705,399.74,REDFERN TRAVEL INVOICE WEEK 26,BD1 3AZ,Admin
Food Standards Agency,Food Standards Agency,16/07/2014,Subsistence UK,Consumer Protection & Commercial Support,Redfern Travel Ltd,85739,399.24,REDFERN TRAVEL INVOICE WEEK 27,BD1 3AZ,Admin
Food Standards Agency,Food Standards Agency,08/07/2014,Subsistence UK,Consumer Protection & Commercial Support,Redfern Travel Ltd,83705,384.19,REDFERN TRAVEL INVOICE WEEK 26,BD1 3AZ,Admin
Food Standards Agency,Food Standards Agency,02/07/2014,Subsistence UK,Operations Local Delivery ,Redfern Travel Ltd,83351,384.10,REDFERN TRAVEL INVOICE WEEK 25,BD1 3AZ,Admin
Food Standards Agency,Food Standards Agency,28/07/2014,Subsistence UK,Food Hygiene Policy Branch,Redfern Travel Ltd,85739,382.90,REDFERN TRAVEL INVOICE WEEK 29,BD1 3AZ,Admin
Food Standards Agency,Food Standards Agency,02/07/2014,Travel UK ,Area 5 South West England - Cluster 55,Redfern Travel Ltd,83351,382.81,REDFERN TRAVEL INVOICE WEEK 25,BD1 3AZ,Programme
Food Standards Agency,Food Standards Agency,16/07/2014,Travel UK ,Internal Audit,Redfern Travel Ltd,85739,382.18,REDFERN TRAVEL INVOICE WEEK 27,BD1 3AZ,Admin
Food Standards Agency,Food Standards Agency,28/07/2014,Travel UK ,Legal Branch A,Redfern Travel Ltd,85739,381.43,REDFERN TRAVEL INVOICE WEEK 29,BD1 3AZ,Admin
Food Standards Agency,Food Standards Agency,16/07/2014,Travel UK ,Additives,Redfern Travel Ltd,85739,378.34,REDFERN TRAVEL INVOICE WEEK 27,BD1 3AZ,Admin
Food Standards Agency,Food Standards Agency,16/07/2014,Travel UK ,Area 6 South East England - Cluster 62,Redfern Travel Ltd,85739,374.37,REDFERN TRAVEL INVOICE WEEK 27,BD1 3AZ,Programme
Food Standards Agency,Food Standards Agency,08/07/2014,Subsistence UK,Novel Food Unit,Redfern Travel Ltd,83705,364.68,REDFERN TRAVEL INVOICE WEEK 26,BD1 3AZ,Admin
Food Standards Agency,Food Standards Agency,08/07/2014,Subsistence UK,Animal Feed     ,Redfern Travel Ltd,83705,364.56,REDFERN TRAVEL INVOICE WEEK 26,BD1 3AZ,Admin
Food Standards Agency,Food Standards Agency,28/07/2014,Subsistence UK,Operations Local Delivery ,Redfern Travel Ltd,85739,363.24,REDFERN TRAVEL INVOICE WEEK 29,BD1 3AZ,Admin
Food Standards Agency,Food Standards Agency,08/07/2014,Travel UK ,Procurement,Redfern Travel Ltd,83705,358.22,REDFERN TRAVEL INVOICE WEEK 26,BD1 3AZ,Admin
Food Standards Agency,Food Standards Agency,02/07/2014,Subsistence UK,Area 6 South East England - Cluster 64,Redfern Travel Ltd,83351,357.70,REDFERN TRAVEL INVOICE WEEK 25,BD1 3AZ,Programme
Food Standards Agency,Food Standards Agency,16/07/2014,Travel UK ,Operations Local Delivery ,Redfern Travel Ltd,85739,357.55,REDFERN TRAVEL INVOICE WEEK 27,BD1 3AZ,Admin
Food Standards Agency,Food Standards Agency,16/07/2014,Subsistence UK,European & International Strategy,Redfern Travel Ltd,85739,349.66,REDFERN TRAVEL INVOICE WEEK 27,BD1 3AZ,Admin
Food Standards Agency,Food Standards Agency,08/07/2014,Subsistence UK,Hygiene & Microbiology Division HoD,Redfern Travel Ltd,83705,346.24,REDFERN TRAVEL INVOICE WEEK 26,BD1 3AZ,Admin
Food Standards Agency,Food Standards Agency,02/07/2014,Subsistence UK,Area 5 South West England - Cluster 57,Redfern Travel Ltd,83351,345.12,REDFERN TRAVEL INVOICE WEEK 25,BD1 3AZ,Programme
Food Standards Agency,Food Standards Agency,28/07/2014,Subsistence UK,Security & Estates,Redfern Travel Ltd,85739,342.62,REDFERN TRAVEL INVOICE WEEK 29,BD1 3AZ,Admin
Food Standards Agency,Food Standards Agency,08/07/2014,Subsistence UK,Legal Branch A,Redfern Travel Ltd,83705,337.17,REDFERN TRAVEL INVOICE WEEK 26,BD1 3AZ,Admin
Food Standards Agency,Food Standards Agency,02/07/2014,Travel UK ,Chief Scientist,Redfern Travel Ltd,83351,335.92,REDFERN TRAVEL INVOICE WEEK 25,BD1 3AZ,Admin
Food Standards Agency,Food Standards Agency,16/07/2014,Subsistence UK,Planning and Performance,Redfern Travel Ltd,85739,331.08,REDFERN TRAVEL INVOICE WEEK 27,BD1 3AZ,Admin
Food Standards Agency,Food Standards Agency,02/07/2014,Fixed Assets Additions,IT Strategy,Capita Secure Information Solutions Ltd,93682771,330.00,PO 417065 CHARGES PHASE 3 MILESTONE 1,SN14 0TW,Capital
Food Standards Agency,Food Standards Agency,24/07/2014,Fixed Assets Additions,IT Strategy,Capita Secure Information Solutions Ltd,93604462,325.08,PO 415712 FSA-366 PSN STAGE 2,SN14 0TW,Capital
Food Standards Agency,Food Standards Agency,16/07/2014,Subsistence UK,Legal Branch A,Redfern Travel Ltd,85739,321.68,REDFERN TRAVEL INVOICE WEEK 27,BD1 3AZ,Admin
Food Standards Agency,Food Standards Agency,28/07/2014,Utilities,Scotland Admin Costs,C N R International UK Ltd,SMH1407041,318.16,"Rent, electricity and service charges - quarterly invoice from CNR",AB11 6NJ,Admin
Food Standards Agency,Food Standards Agency,28/07/2014,Subsistence UK,Area 2 Wales - Cluster 22,Redfern Travel Ltd,85739,315.59,REDFERN TRAVEL INVOICE WEEK 29,BD1 3AZ,Programme
Food Standards Agency,Food Standards Agency,02/07/2014,Subsistence UK,Internal Audit,Redfern Travel Ltd,83351,315.40,REDFERN TRAVEL INVOICE WEEK 25,BD1 3AZ,Admin
Food Standards Agency,Food Standards Agency,02/07/2014,Travel UK ,Food Production Branch,Redfern Travel Ltd,83351,310.37,REDFERN TRAVEL INVOICE WEEK 25,BD1 3AZ,Admin
Food Standards Agency,Food Standards Agency,08/07/2014,Travel UK ,IT Service Delivery,Redfern Travel Ltd,83705,309.04,REDFERN TRAVEL INVOICE WEEK 26,BD1 3AZ,Admin
Food Standards Agency,Food Standards Agency,28/07/2014,Subsistence UK,HR,Redfern Travel Ltd,85739,307.89,REDFERN TRAVEL INVOICE WEEK 29,BD1 3AZ,Admin
Food Standards Agency,Food Standards Agency,02/07/2014,Subsistence UK,Comms Directors Office,Redfern Travel Ltd,83351,306.63,REDFERN TRAVEL INVOICE WEEK 25,BD1 3AZ,Admin
Food Standards Agency,Food Standards Agency,08/07/2014,Subsistence UK,Better Regulations & Sustainable Development,Redfern Travel Ltd,83705,306.63,REDFERN TRAVEL INVOICE WEEK 26,BD1 3AZ,Admin
Food Standards Agency,Food Standards Agency,08/07/2014,Travel UK ,Additives,Redfern Travel Ltd,83705,301.80,REDFERN TRAVEL INVOICE WEEK 26,BD1 3AZ,Admin
Food Standards Agency,Food Standards Agency,16/07/2014,Travel UK ,Area 6 South East England - Cluster 61,Redfern Travel Ltd,85739,299.92,REDFERN TRAVEL INVOICE WEEK 27,BD1 3AZ,Programme
Food Standards Agency,Food Standards Agency,02/07/2014,Subsistence UK,Area 3 North West England - Cluster 31,Redfern Travel Ltd,83351,295.12,REDFERN TRAVEL INVOICE WEEK 25,BD1 3AZ,Programme
Food Standards Agency,Food Standards Agency,28/07/2014,Utilities,Scotland Admin Costs,C N R International UK Ltd,SMH1407041,293.65,"Rent, electricity and service charges - quarterly invoice from CNR",AB11 6NJ,Admin
Food Standards Agency,Food Standards Agency,28/07/2014,Travel UK ,Area 2 Wales - Cluster 22,Redfern Travel Ltd,85739,290.68,REDFERN TRAVEL INVOICE WEEK 29,BD1 3AZ,Programme
Food Standards Agency,Food Standards Agency,16/07/2014,Subsistence UK,Chief Executive & Private Office,Redfern Travel Ltd,85739,285.12,REDFERN TRAVEL INVOICE WEEK 27,BD1 3AZ,Admin
Food Standards Agency,Food Standards Agency,16/07/2014,Travel UK ,Security & Estates,Redfern Travel Ltd,85739,283.90,REDFERN TRAVEL INVOICE WEEK 27,BD1 3AZ,Admin
Food Standards Agency,Food Standards Agency,28/07/2014,Subsistence UK,Area 3 North West England - Cluster 35,Redfern Travel Ltd,85739,283.84,REDFERN TRAVEL INVOICE WEEK 29,BD1 3AZ,Programme
Food Standards Agency,Food Standards Agency,08/07/2014,Subsistence UK,Planning and Performance,Redfern Travel Ltd,83705,283.56,REDFERN TRAVEL INVOICE WEEK 26,BD1 3AZ,Admin
Food Standards Agency,Food Standards Agency,16/07/2014,Travel UK ,Area 6 South East England - Cluster 63,Redfern Travel Ltd,85739,278.12,REDFERN TRAVEL INVOICE WEEK 27,BD1 3AZ,Programme
Food Standards Agency,Food Standards Agency,28/07/2014,Travel UK ,Non Meat Field Ops,Redfern Travel Ltd,85739,277.02,REDFERN TRAVEL INVOICE WEEK 29,BD1 3AZ,Programme
Food Standards Agency,Food Standards Agency,02/07/2014,Travel UK ,Procurement,Redfern Travel Ltd,83351,272.53,REDFERN TRAVEL INVOICE WEEK 25,BD1 3AZ,Admin
Food Standards Agency,Food Standards Agency,28/07/2014,Subsistence UK,Area 5 South West England - Cluster 54,Redfern Travel Ltd,85739,272.12,REDFERN TRAVEL INVOICE WEEK 29,BD1 3AZ,Programme
Food Standards Agency,Food Standards Agency,28/07/2014,Travel UK ,Area 6 South East England - Cluster 62,Redfern Travel Ltd,85739,270.20,REDFERN TRAVEL INVOICE WEEK 29,BD1 3AZ,Programme
Food Standards Agency,Food Standards Agency,16/07/2014,Subsistence UK,Comms Directors Office,Redfern Travel Ltd,85739,269.84,REDFERN TRAVEL INVOICE WEEK 27,BD1 3AZ,Admin
Food Standards Agency,Food Standards Agency,08/07/2014,Subsistence EC,Food Hygiene Policy Branch,Redfern Travel Ltd,83705,269.42,REDFERN TRAVEL INVOICE WEEK 26,BD1 3AZ,Admin
Food Standards Agency,Food Standards Agency,02/07/2014,Travel UK ,Area 5 South West England - Cluster 51,Redfern Travel Ltd,83351,268.58,REDFERN TRAVEL INVOICE WEEK 25,BD1 3AZ,Programme
Food Standards Agency,Food Standards Agency,16/07/2014,Travel UK ,Area 5 South West England - Cluster 52,Redfern Travel Ltd,85739,268.35,REDFERN TRAVEL INVOICE WEEK 27,BD1 3AZ,Programme
Food Standards Agency,Food Standards Agency,28/07/2014,Subsistence EC,European & International Strategy,Redfern Travel Ltd,85739,265.47,REDFERN TRAVEL INVOICE WEEK 29,BD1 3AZ,Admin
Food Standards Agency,Food Standards Agency,16/07/2014,Travel UK ,Contaminants HoD,Redfern Travel Ltd,85739,265.08,REDFERN TRAVEL INVOICE WEEK 27,BD1 3AZ,Admin
Food Standards Agency,Food Standards Agency,08/07/2014,Subsistence EC,Contaminants Policy & Strategy Unit,Redfern Travel Ltd,83705,263.72,REDFERN TRAVEL INVOICE WEEK 26,BD1 3AZ,Admin
Food Standards Agency,Food Standards Agency,08/07/2014,Subsistence UK,Finance Director & Branch,Redfern Travel Ltd,83705,262.68,REDFERN TRAVEL INVOICE WEEK 26,BD1 3AZ,Admin
Food Standards Agency,Food Standards Agency,02/07/2014,Subsistence UK,Finance Director & Branch,Redfern Travel Ltd,83351,262.17,REDFERN TRAVEL INVOICE WEEK 25,BD1 3AZ,Admin
Food Standards Agency,Food Standards Agency,02/07/2014,Subsistence UK,IT Service Delivery,Redfern Travel Ltd,83351,261.56,REDFERN TRAVEL INVOICE WEEK 25,BD1 3AZ,Admin
Food Standards Agency,Food Standards Agency,28/07/2014,Subsistence UK,Consumer Protection & Commercial Support,Redfern Travel Ltd,85739,259.56,REDFERN TRAVEL INVOICE WEEK 29,BD1 3AZ,Admin
Food Standards Agency,Food Standards Agency,28/07/2014,Subsistence UK,Area 4 North East England - Cluster 41,Redfern Travel Ltd,85739,257.25,REDFERN TRAVEL INVOICE WEEK 29,BD1 3AZ,Programme
Food Standards Agency,Food Standards Agency,28/07/2014,Travel UK ,Procurement,Redfern Travel Ltd,85739,255.03,REDFERN TRAVEL INVOICE WEEK 29,BD1 3AZ,Admin
Food Standards Agency,Food Standards Agency,16/07/2014,Subsistence UK,Area 3 North West England - Cluster 35,Redfern Travel Ltd,85739,253.96,REDFERN TRAVEL INVOICE WEEK 27,BD1 3AZ,Programme
Food Standards Agency,Food Standards Agency,28/07/2014,Travel UK ,Animal Feed Branch,Redfern Travel Ltd,85739,249.20,REDFERN TRAVEL INVOICE WEEK 29,BD1 3AZ,Admin
Food Standards Agency,Food Standards Agency,28/07/2014,Travel UK ,Internal Audit,Redfern Travel Ltd,85739,243.85,REDFERN TRAVEL INVOICE WEEK 29,BD1 3AZ,Admin
Food Standards Agency,Food Standards Agency,08/07/2014,Subsistence EC,Foodborne Diseases Branch,Redfern Travel Ltd,83705,240.53,REDFERN TRAVEL INVOICE WEEK 26,BD1 3AZ,Admin
Food Standards Agency,Food Standards Agency,16/07/2014,Travel UK ,Area 5 South West England - Cluster 57,Redfern Travel Ltd,85739,238.91,REDFERN TRAVEL INVOICE WEEK 27,BD1 3AZ,Programme
Food Standards Agency,Food Standards Agency,02/07/2014,Subsistence UK,HR,Redfern Travel Ltd,83351,238.26,REDFERN TRAVEL INVOICE WEEK 25,BD1 3AZ,Admin
Food Standards Agency,Food Standards Agency,02/07/2014,Travel UK ,Security & Estates,Redfern Travel Ltd,83351,235.59,REDFERN TRAVEL INVOICE WEEK 25,BD1 3AZ,Admin
Food Standards Agency,Food Standards Agency,28/07/2014,Subsistence EC,Additives,Redfern Travel Ltd,85739,234.13,REDFERN TRAVEL INVOICE WEEK 29,BD1 3AZ,Admin
Food Standards Agency,Food Standards Agency,28/07/2014,Subsistence UK,Animal Feed Branch,Redfern Travel Ltd,85739,232.11,REDFERN TRAVEL INVOICE WEEK 29,BD1 3AZ,Admin
Food Standards Agency,Food Standards Agency,02/07/2014,Travel UK ,Area 6 South East England - Cluster 61,Redfern Travel Ltd,83351,231.52,REDFERN TRAVEL INVOICE WEEK 25,BD1 3AZ,Programme
Food Standards Agency,Food Standards Agency,28/07/2014,Subsistence UK,Area 2 Wales - Cluster 21,Redfern Travel Ltd,85739,228.34,REDFERN TRAVEL INVOICE WEEK 29,BD1 3AZ,Programme
Food Standards Agency,Food Standards Agency,08/07/2014,Travel UK ,Area 5 South West England - Cluster 55,Redfern Travel Ltd,83705,228.19,REDFERN TRAVEL INVOICE WEEK 26,BD1 3AZ,Programme
Food Standards Agency,Food Standards Agency,08/07/2014,Subsistence UK,Area 4 North East England - Cluster 46,Redfern Travel Ltd,83705,228.12,REDFERN TRAVEL INVOICE WEEK 26,BD1 3AZ,Programme
Food Standards Agency,Food Standards Agency,16/07/2014,Travel UK ,Analysis & Research Branch,Redfern Travel Ltd,85739,227.12,REDFERN TRAVEL INVOICE WEEK 27,BD1 3AZ,Admin
Food Standards Agency,Food Standards Agency,08/07/2014,Travel UK ,Chair & Deputy Chair,Redfern Travel Ltd,83705,225.92,REDFERN TRAVEL INVOICE WEEK 26,BD1 3AZ,Admin
Food Standards Agency,Food Standards Agency,08/07/2014,Subsistence UK,Comms Directors Office,Redfern Travel Ltd,83705,225.86,REDFERN TRAVEL INVOICE WEEK 26,BD1 3AZ,Admin
Food Standards Agency,Food Standards Agency,28/07/2014,Subsistence EC,Contaminants Policy & Strategy Unit,Redfern Travel Ltd,85739,219.44,REDFERN TRAVEL INVOICE WEEK 29,BD1 3AZ,Admin
Food Standards Agency,Food Standards Agency,16/07/2014,Travel UK ,Food Hygiene Policy Branch,Redfern Travel Ltd,85739,218.53,REDFERN TRAVEL INVOICE WEEK 27,BD1 3AZ,Admin
Food Standards Agency,Food Standards Agency,02/07/2014,Subsistence UK,Area 4 North East England - Cluster 41,Redfern Travel Ltd,83351,217.68,REDFERN TRAVEL INVOICE WEEK 25,BD1 3AZ,Programme
Food Standards Agency,Food Standards Agency,28/07/2014,Subsistence UK,Comms Directors Office,Redfern Travel Ltd,85739,216.98,REDFERN TRAVEL INVOICE WEEK 29,BD1 3AZ,Admin
Food Standards Agency,Food Standards Agency,08/07/2014,Travel UK ,Area 3 North West England - Cluster 35,Redfern Travel Ltd,83705,211.70,REDFERN TRAVEL INVOICE WEEK 26,BD1 3AZ,Programme
Food Standards Agency,Food Standards Agency,28/07/2014,Subsistence UK,Official Feed & Foods Controls Policy Unit,Redfern Travel Ltd,85739,210.49,REDFERN TRAVEL INVOICE WEEK 29,BD1 3AZ,Admin
Food Standards Agency,Food Standards Agency,28/07/2014,Travel UK ,Comms Directors Office,Redfern Travel Ltd,85739,207.98,REDFERN TRAVEL INVOICE WEEK 29,BD1 3AZ,Admin
Food Standards Agency,Food Standards Agency,02/07/2014,Travel UK ,Area 5 South West England - Cluster 54,Redfern Travel Ltd,83351,207.09,REDFERN TRAVEL INVOICE WEEK 25,BD1 3AZ,Programme
Food Standards Agency,Food Standards Agency,02/07/2014,Travel UK ,Contaminants Policy & Strategy Unit,Redfern Travel Ltd,83351,205.90,REDFERN TRAVEL INVOICE WEEK 25,BD1 3AZ,Admin
Food Standards Agency,Food Standards Agency,02/07/2014,Travel UK ,Better Regulations & Sustainable Development,Redfern Travel Ltd,83351,201.40,REDFERN TRAVEL INVOICE WEEK 25,BD1 3AZ,Admin
Food Standards Agency,Food Standards Agency,16/07/2014,Subsistence UK,Animal Feed Branch,Redfern Travel Ltd,85739,199.56,REDFERN TRAVEL INVOICE WEEK 27,BD1 3AZ,Admin
Food Standards Agency,Food Standards Agency,10/07/2014,Fixed Assets Additions,Operations Assurance,Capita Secure Information Solutions Ltd,93682817,198.00,PO 417063 FSA-413 K2,SN14 0TW,Capital
Food Standards Agency,Food Standards Agency,28/07/2014,Subsistence UK,Area 4 North East England - Cluster 46,Redfern Travel Ltd,85739,195.06,REDFERN TRAVEL INVOICE WEEK 29,BD1 3AZ,Programme
Food Standards Agency,Food Standards Agency,02/07/2014,Travel UK ,Area 6 South East England - Cluster 66,Redfern Travel Ltd,83351,192.97,REDFERN TRAVEL INVOICE WEEK 25,BD1 3AZ,Programme
Food Standards Agency,Food Standards Agency,16/07/2014,Subsistence UK,Area 2 Wales - Cluster 23,Redfern Travel Ltd,85739,191.77,REDFERN TRAVEL INVOICE WEEK 27,BD1 3AZ,Programme
Food Standards Agency,Food Standards Agency,02/07/2014,Subsistence UK,Area 1 Scotland - Cluster 11,Redfern Travel Ltd,83351,191.12,REDFERN TRAVEL INVOICE WEEK 25,BD1 3AZ,Programme
Food Standards Agency,Food Standards Agency,02/07/2014,Subsistence UK,Directorate Support Unit,Redfern Travel Ltd,83351,189.56,REDFERN TRAVEL INVOICE WEEK 25,BD1 3AZ,Admin
Food Standards Agency,Food Standards Agency,16/07/2014,Subsistence UK,Procurement,Redfern Travel Ltd,85739,189.56,REDFERN TRAVEL INVOICE WEEK 27,BD1 3AZ,Admin
Food Standards Agency,Food Standards Agency,08/07/2014,Subsistence UK,Area 1 Scotland - Cluster 11,Redfern Travel Ltd,83705,186.22,REDFERN TRAVEL INVOICE WEEK 26,BD1 3AZ,Programme
Food Standards Agency,Food Standards Agency,08/07/2014,Subsistence UK,Area 1 Scotland - Cluster 13,Redfern Travel Ltd,83705,186.22,REDFERN TRAVEL INVOICE WEEK 26,BD1 3AZ,Programme
Food Standards Agency,Food Standards Agency,28/07/2014,Travel UK ,Procurement,Redfern Travel Ltd,85739,185.53,REDFERN TRAVEL INVOICE WEEK 29,BD1 3AZ,Admin
Food Standards Agency,Food Standards Agency,16/07/2014,Travel UK ,Area 2 Wales - Cluster 23,Redfern Travel Ltd,85739,181.63,REDFERN TRAVEL INVOICE WEEK 27,BD1 3AZ,Programme
Food Standards Agency,Food Standards Agency,08/07/2014,Travel UK ,Area 5 South West England - Cluster 51,Redfern Travel Ltd,83705,179.92,REDFERN TRAVEL INVOICE WEEK 26,BD1 3AZ,Programme
Food Standards Agency,Food Standards Agency,08/07/2014,Travel UK ,Area 6 South East England - Cluster 63,Redfern Travel Ltd,83705,178.36,REDFERN TRAVEL INVOICE WEEK 26,BD1 3AZ,Programme
Food Standards Agency,Food Standards Agency,28/07/2014,Travel UK ,Area 6 South East England - Cluster 61,Redfern Travel Ltd,85739,178.15,REDFERN TRAVEL INVOICE WEEK 29,BD1 3AZ,Programme
Food Standards Agency,Food Standards Agency,16/07/2014,Subsistence UK,Non Meat Field Ops,Redfern Travel Ltd,85739,177.12,REDFERN TRAVEL INVOICE WEEK 27,BD1 3AZ,Programme
Food Standards Agency,Food Standards Agency,02/07/2014,Travel UK ,Legal Branch A,Redfern Travel Ltd,83351,176.39,REDFERN TRAVEL INVOICE WEEK 25,BD1 3AZ,Admin
Food Standards Agency,Food Standards Agency,02/07/2014,Travel UK ,Procurement,Redfern Travel Ltd,83351,172.50,REDFERN TRAVEL INVOICE WEEK 25,BD1 3AZ,Admin
Food Standards Agency,Food Standards Agency,28/07/2014,Travel UK ,Area 5 South West England - Cluster 53,Redfern Travel Ltd,85739,169.48,REDFERN TRAVEL INVOICE WEEK 29,BD1 3AZ,Programme
Food Standards Agency,Food Standards Agency,16/07/2014,Travel UK ,Procurement,Redfern Travel Ltd,85739,168.51,REDFERN TRAVEL INVOICE WEEK 27,BD1 3AZ,Admin
Food Standards Agency,Food Standards Agency,08/07/2014,Travel UK ,Area 5 South West England - Cluster 52,Redfern Travel Ltd,83705,168.05,REDFERN TRAVEL INVOICE WEEK 26,BD1 3AZ,Programme
Food Standards Agency,Food Standards Agency,02/07/2014,Travel UK ,Area 5 South West England - Cluster 57,Redfern Travel Ltd,83351,167.55,REDFERN TRAVEL INVOICE WEEK 25,BD1 3AZ,Programme
Food Standards Agency,Food Standards Agency,28/07/2014,Travel UK ,Area 2 Wales - Cluster 23,Redfern Travel Ltd,85739,167.20,REDFERN TRAVEL INVOICE WEEK 29,BD1 3AZ,Programme
Food Standards Agency,Food Standards Agency,08/07/2014,Travel UK ,Procurement,Redfern Travel Ltd,83705,164.70,REDFERN TRAVEL INVOICE WEEK 26,BD1 3AZ,Admin
Food Standards Agency,Food Standards Agency,16/07/2014,Travel UK ,Allergens,Redfern Travel Ltd,85739,164.53,REDFERN TRAVEL INVOICE WEEK 27,BD1 3AZ,Admin
Food Standards Agency,Food Standards Agency,08/07/2014,Subsistence UK,Area 6 South East England - Cluster 64,Redfern Travel Ltd,83705,161.56,REDFERN TRAVEL INVOICE WEEK 26,BD1 3AZ,Programme
Food Standards Agency,Food Standards Agency,16/07/2014,Travel UK ,Area 6 South East England - Cluster 64,Redfern Travel Ltd,85739,159.69,REDFERN TRAVEL INVOICE WEEK 27,BD1 3AZ,Programme
Food Standards Agency,Food Standards Agency,02/07/2014,Travel UK ,Area 6 South East England - Cluster 63,Redfern Travel Ltd,83351,158.40,REDFERN TRAVEL INVOICE WEEK 25,BD1 3AZ,Programme
Food Standards Agency,Food Standards Agency,08/07/2014,Travel UK ,Chief Scientist,Redfern Travel Ltd,83705,157.45,REDFERN TRAVEL INVOICE WEEK 26,BD1 3AZ,Admin
Food Standards Agency,Food Standards Agency,28/07/2014,Travel UK ,Directorate Support Unit,Redfern Travel Ltd,85739,156.81,REDFERN TRAVEL INVOICE WEEK 29,BD1 3AZ,Admin
Food Standards Agency,Food Standards Agency,08/07/2014,Subsistence UK,Area 4 North East England - Cluster 42,Redfern Travel Ltd,83705,156.12,REDFERN TRAVEL INVOICE WEEK 26,BD1 3AZ,Programme
Food Standards Agency,Food Standards Agency,08/07/2014,Travel UK ,European & International Strategy,Redfern Travel Ltd,83705,155.90,REDFERN TRAVEL INVOICE WEEK 26,BD1 3AZ,Admin
Food Standards Agency,Food Standards Agency,28/07/2014,Subsistence UK,Internal Audit,Redfern Travel Ltd,85739,154.12,REDFERN TRAVEL INVOICE WEEK 29,BD1 3AZ,Admin
Food Standards Agency,Food Standards Agency,02/07/2014,Travel UK ,Area 4 North East England - Cluster 41,Redfern Travel Ltd,83351,153.84,REDFERN TRAVEL INVOICE WEEK 25,BD1 3AZ,Programme
Food Standards Agency,Food Standards Agency,28/07/2014,Travel UK ,Area 6 South East England - Cluster 63,Redfern Travel Ltd,85739,149.18,REDFERN TRAVEL INVOICE WEEK 29,BD1 3AZ,Programme
Food Standards Agency,Food Standards Agency,16/07/2014,Travel UK ,Area 4 North East England - Cluster 41,Redfern Travel Ltd,85739,145.76,REDFERN TRAVEL INVOICE WEEK 27,BD1 3AZ,Programme
Food Standards Agency,Food Standards Agency,02/07/2014,Subsistence UK,European & International Strategy,Redfern Travel Ltd,83351,145.68,REDFERN TRAVEL INVOICE WEEK 25,BD1 3AZ,Admin
Food Standards Agency,Food Standards Agency,16/07/2014,Travel UK ,Legal Branch A,Redfern Travel Ltd,85739,143.84,REDFERN TRAVEL INVOICE WEEK 27,BD1 3AZ,Admin
Food Standards Agency,Food Standards Agency,28/07/2014,Subsistence UK,Better Regulations & Sustainable Development,Redfern Travel Ltd,85739,141.56,REDFERN TRAVEL INVOICE WEEK 29,BD1 3AZ,Admin
Food Standards Agency,Food Standards Agency,02/07/2014,Travel UK ,Area 6 South East England - Cluster 62,Redfern Travel Ltd,83351,140.75,REDFERN TRAVEL INVOICE WEEK 25,BD1 3AZ,Programme
Food Standards Agency,Food Standards Agency,02/07/2014,Travel UK ,Area 5 South West England - Cluster 52,Redfern Travel Ltd,83351,138.18,REDFERN TRAVEL INVOICE WEEK 25,BD1 3AZ,Programme
Food Standards Agency,Food Standards Agency,08/07/2014,Subsistence EC,Analysis & Research Branch,Redfern Travel Ltd,83705,137.22,REDFERN TRAVEL INVOICE WEEK 26,BD1 3AZ,Admin
Food Standards Agency,Food Standards Agency,28/07/2014,Subsistence EC,Food Hygiene Policy Branch,Redfern Travel Ltd,85739,133.93,REDFERN TRAVEL INVOICE WEEK 29,BD1 3AZ,Admin
Food Standards Agency,Food Standards Agency,08/07/2014,Subsistence EC,Novel Food Unit,Redfern Travel Ltd,83705,133.74,REDFERN TRAVEL INVOICE WEEK 26,BD1 3AZ,Admin
Food Standards Agency,Food Standards Agency,08/07/2014,Subsistence EC,Hygiene & Microbiology Division HoD,Redfern Travel Ltd,83705,132.64,REDFERN TRAVEL INVOICE WEEK 26,BD1 3AZ,Admin
Food Standards Agency,Food Standards Agency,08/07/2014,Subsistence EC,Chemical Risk Assessment Unit,Redfern Travel Ltd,83705,131.08,REDFERN TRAVEL INVOICE WEEK 26,BD1 3AZ,Admin
Food Standards Agency,Food Standards Agency,28/07/2014,Subsistence EC,Contaminants HoD,Redfern Travel Ltd,85739,129.10,REDFERN TRAVEL INVOICE WEEK 29,BD1 3AZ,Admin
Food Standards Agency,Food Standards Agency,28/07/2014,Subsistence EC,Novel Food Unit,Redfern Travel Ltd,85739,128.59,REDFERN TRAVEL INVOICE WEEK 29,BD1 3AZ,Admin
Food Standards Agency,Food Standards Agency,16/07/2014,Travel UK ,Area 6 South East England - Cluster 65,Redfern Travel Ltd,85739,128.27,REDFERN TRAVEL INVOICE WEEK 27,BD1 3AZ,Programme
Food Standards Agency,Food Standards Agency,16/07/2014,Subsistence UK,Internal Audit,Redfern Travel Ltd,85739,127.12,REDFERN TRAVEL INVOICE WEEK 27,BD1 3AZ,Admin
Food Standards Agency,Food Standards Agency,16/07/2014,Subsistence UK,Area 5 South West England - Cluster 56,Redfern Travel Ltd,85739,125.51,REDFERN TRAVEL INVOICE WEEK 27,BD1 3AZ,Programme
Food Standards Agency,Food Standards Agency,02/07/2014,Travel UK ,Area 3 North West England - Cluster 31,Redfern Travel Ltd,83351,122.12,REDFERN TRAVEL INVOICE WEEK 25,BD1 3AZ,Programme
Food Standards Agency,Food Standards Agency,16/07/2014,Travel UK ,Non Meat Field Ops,Redfern Travel Ltd,85739,121.00,REDFERN TRAVEL INVOICE WEEK 27,BD1 3AZ,Programme
Food Standards Agency,Food Standards Agency,08/07/2014,Travel UK ,Animal Feed Branch,Redfern Travel Ltd,83705,120.90,REDFERN TRAVEL INVOICE WEEK 26,BD1 3AZ,Admin
Food Standards Agency,Food Standards Agency,16/07/2014,Travel UK ,Chair & Deputy Chair,Redfern Travel Ltd,85739,118.40,REDFERN TRAVEL INVOICE WEEK 27,BD1 3AZ,Admin
Food Standards Agency,Food Standards Agency,08/07/2014,Travel UK ,Area 1 Scotland - Cluster 15,Redfern Travel Ltd,83705,114.75,REDFERN TRAVEL INVOICE WEEK 26,BD1 3AZ,Programme
Food Standards Agency,Food Standards Agency,16/07/2014,Travel UK ,Area 2 Wales - Cluster 22,Redfern Travel Ltd,85739,113.95,REDFERN TRAVEL INVOICE WEEK 27,BD1 3AZ,Programme
Food Standards Agency,Food Standards Agency,02/07/2014,Travel UK ,Area 4 North East England - Cluster 46,Redfern Travel Ltd,83351,112.93,REDFERN TRAVEL INVOICE WEEK 25,BD1 3AZ,Programme
Food Standards Agency,Food Standards Agency,28/07/2014,Subsistence UK,Finance Director & Branch,Redfern Travel Ltd,85739,112.16,REDFERN TRAVEL INVOICE WEEK 29,BD1 3AZ,Admin
Food Standards Agency,Food Standards Agency,08/07/2014,Travel UK ,Area 6 South East England - Cluster 62,Redfern Travel Ltd,83705,110.75,REDFERN TRAVEL INVOICE WEEK 26,BD1 3AZ,Programme
Food Standards Agency,Food Standards Agency,02/07/2014,Fixed Assets Additions,IT Strategy,Capita Secure Information Solutions Ltd,93682771,109.00,PO 417065 CHARGES PHASE 3 MILESTONE 1,SN14 0TW,Capital
Food Standards Agency,Food Standards Agency,16/07/2014,Subsistence UK,HR,Redfern Travel Ltd,85739,108.11,REDFERN TRAVEL INVOICE WEEK 27,BD1 3AZ,Admin
Food Standards Agency,Food Standards Agency,28/07/2014,Travel UK ,Contaminants HoD,Redfern Travel Ltd,85739,107.30,REDFERN TRAVEL INVOICE WEEK 29,BD1 3AZ,Admin
Food Standards Agency,Food Standards Agency,02/07/2014,Travel UK ,Area 4 North East England - Cluster 43,Redfern Travel Ltd,83351,106.75,REDFERN TRAVEL INVOICE WEEK 25,BD1 3AZ,Programme
Food Standards Agency,Food Standards Agency,08/07/2014,Travel UK ,Analysis & Research Branch,Redfern Travel Ltd,83705,104.87,REDFERN TRAVEL INVOICE WEEK 26,BD1 3AZ,Admin
Food Standards Agency,Food Standards Agency,28/07/2014,Travel UK ,Area 5 South West England - Cluster 55,Redfern Travel Ltd,85739,104.22,REDFERN TRAVEL INVOICE WEEK 29,BD1 3AZ,Programme
Food Standards Agency,Food Standards Agency,16/07/2014,Subsistence UK,Area 2 Wales - Cluster 22,Redfern Travel Ltd,85739,102.21,REDFERN TRAVEL INVOICE WEEK 27,BD1 3AZ,Programme
Food Standards Agency,Food Standards Agency,28/07/2014,Subsistence UK,Operations Assurance - Admin,Redfern Travel Ltd,85739,102.21,REDFERN TRAVEL INVOICE WEEK 29,BD1 3AZ,Admin
Food Standards Agency,Food Standards Agency,02/07/2014,Subsistence UK,Food Production Branch,Redfern Travel Ltd,83351,102.21,REDFERN TRAVEL INVOICE WEEK 25,BD1 3AZ,Admin
Food Standards Agency,Food Standards Agency,28/07/2014,Subsistence UK,Area 1 Scotland - Cluster 12,Redfern Travel Ltd,85739,100.56,REDFERN TRAVEL INVOICE WEEK 29,BD1 3AZ,Programme
Food Standards Agency,Food Standards Agency,02/07/2014,Subsistence UK,Analysis & Research Branch,Redfern Travel Ltd,83351,100.56,REDFERN TRAVEL INVOICE WEEK 25,BD1 3AZ,Admin
Food Standards Agency,Food Standards Agency,08/07/2014,Subsistence UK,Area 5 South West England - Cluster 53,Redfern Travel Ltd,83705,99.56,REDFERN TRAVEL INVOICE WEEK 26,BD1 3AZ,Programme
Food Standards Agency,Food Standards Agency,28/07/2014,Travel UK ,IT Service Delivery,Redfern Travel Ltd,85739,99.29,REDFERN TRAVEL INVOICE WEEK 29,BD1 3AZ,Admin
Food Standards Agency,Food Standards Agency,16/07/2014,Travel UK ,Area 1 Scotland - Cluster 13,Redfern Travel Ltd,85739,96.66,REDFERN TRAVEL INVOICE WEEK 27,BD1 3AZ,Programme
Food Standards Agency,Food Standards Agency,28/07/2014,Travel UK ,Area 1 Scotland - Cluster 13,Redfern Travel Ltd,85739,96.66,REDFERN TRAVEL INVOICE WEEK 29,BD1 3AZ,Programme
Food Standards Agency,Food Standards Agency,02/07/2014,ASD support services,IT Strategy,Capita Secure Information Solutions Ltd,93682771,94.30,PO 417065 CHARGES PHASE 3 MILESTONE 1,SN14 0TW,Admin
Food Standards Agency,Food Standards Agency,08/07/2014,Subsistence UK,Area 1 Scotland - Cluster 12,Redfern Travel Ltd,83705,93.17,REDFERN TRAVEL INVOICE WEEK 26,BD1 3AZ,Programme
Food Standards Agency,Food Standards Agency,08/07/2014,Subsistence UK,Area 1 Scotland - Cluster 15,Redfern Travel Ltd,83705,93.05,REDFERN TRAVEL INVOICE WEEK 26,BD1 3AZ,Programme
Food Standards Agency,Food Standards Agency,28/07/2014,Subsistence EC,Animal Feed Branch,Redfern Travel Ltd,85739,90.57,REDFERN TRAVEL INVOICE WEEK 29,BD1 3AZ,Admin
Food Standards Agency,Food Standards Agency,16/07/2014,Subsistence EC,Area 5 South West England - Cluster 57,Redfern Travel Ltd,85739,90.56,REDFERN TRAVEL INVOICE WEEK 27,BD1 3AZ,Programme
Food Standards Agency,Food Standards Agency,08/07/2014,Travel UK ,Non Meat Field Ops,Redfern Travel Ltd,83705,90.40,REDFERN TRAVEL INVOICE WEEK 26,BD1 3AZ,Programme
Food Standards Agency,Food Standards Agency,02/07/2014,Travel UK ,Area 5 South West England - Cluster 53,Redfern Travel Ltd,83351,89.67,REDFERN TRAVEL INVOICE WEEK 25,BD1 3AZ,Programme
Food Standards Agency,Food Standards Agency,28/07/2014,Subsistence UK,Area 6 South East England - Cluster 63,Redfern Travel Ltd,85739,89.56,REDFERN TRAVEL INVOICE WEEK 29,BD1 3AZ,Programme
Food Standards Agency,Food Standards Agency,28/07/2014,Travel UK ,Area 3 North West England - Cluster 36,Redfern Travel Ltd,85739,88.51,REDFERN TRAVEL INVOICE WEEK 29,BD1 3AZ,Programme
Food Standards Agency,Food Standards Agency,08/07/2014,Subsistence EC,Consumer Protection & Commercial Support,Redfern Travel Ltd,83705,88.47,REDFERN TRAVEL INVOICE WEEK 26,BD1 3AZ,Admin
Food Standards Agency,Food Standards Agency,02/07/2014,Travel UK ,Area 3 North West England - Cluster 36,Redfern Travel Ltd,83351,87.76,REDFERN TRAVEL INVOICE WEEK 25,BD1 3AZ,Programme
Food Standards Agency,Food Standards Agency,28/07/2014,Subsistence EC,Operations Local Delivery ,Redfern Travel Ltd,85739,87.58,REDFERN TRAVEL INVOICE WEEK 29,BD1 3AZ,Admin
Food Standards Agency,Food Standards Agency,28/07/2014,Subsistence EC,Foodborne Diseases Branch,Redfern Travel Ltd,85739,87.58,REDFERN TRAVEL INVOICE WEEK 29,BD1 3AZ,Admin
Food Standards Agency,Food Standards Agency,16/07/2014,Subsistence UK,Area 6 South East England - Cluster 63,Redfern Travel Ltd,85739,87.56,REDFERN TRAVEL INVOICE WEEK 27,BD1 3AZ,Programme
Food Standards Agency,Food Standards Agency,02/07/2014,Travel UK ,Approvals & Veterinary Advice,Redfern Travel Ltd,83351,87.25,REDFERN TRAVEL INVOICE WEEK 25,BD1 3AZ,Programme
Food Standards Agency,Food Standards Agency,28/07/2014,Car hire expenses (short term),Finance Director & Branch,Redfern Travel Ltd,85739,87.17,REDFERN TRAVEL INVOICE WEEK 29,BD1 3AZ,Admin
Food Standards Agency,Food Standards Agency,16/07/2014,Subsistence EC,Chief Scientist,Redfern Travel Ltd,85739,87.15,REDFERN TRAVEL INVOICE WEEK 27,BD1 3AZ,Admin
Food Standards Agency,Food Standards Agency,08/07/2014,Subsistence EC,Food Production Branch,Redfern Travel Ltd,83705,86.95,REDFERN TRAVEL INVOICE WEEK 26,BD1 3AZ,Admin
Food Standards Agency,Food Standards Agency,02/07/2014,Travel UK ,Animal Feed Branch,Redfern Travel Ltd,83351,85.90,REDFERN TRAVEL INVOICE WEEK 25,BD1 3AZ,Admin
Food Standards Agency,Food Standards Agency,02/07/2014,Travel UK ,Area 1 Scotland - Cluster 13,Redfern Travel Ltd,83351,82.01,REDFERN TRAVEL INVOICE WEEK 25,BD1 3AZ,Programme
Food Standards Agency,Food Standards Agency,16/07/2014,Travel UK ,Directorate Support Unit,Redfern Travel Ltd,85739,82.01,REDFERN TRAVEL INVOICE WEEK 27,BD1 3AZ,Admin
Food Standards Agency,Food Standards Agency,02/07/2014,Travel UK ,Area 4 North East England - Cluster 48,Redfern Travel Ltd,83351,81.94,REDFERN TRAVEL INVOICE WEEK 25,BD1 3AZ,Programme
Food Standards Agency,Food Standards Agency,08/07/2014,Subsistence UK,Food Production Branch,Redfern Travel Ltd,83705,81.56,REDFERN TRAVEL INVOICE WEEK 26,BD1 3AZ,Admin
Food Standards Agency,Food Standards Agency,28/07/2014,Subsistence UK,Area 1 Scotland - Cluster 11,Redfern Travel Ltd,85739,81.12,REDFERN TRAVEL INVOICE WEEK 29,BD1 3AZ,Programme
Food Standards Agency,Food Standards Agency,28/07/2014,Subsistence UK,Area 1 Scotland - Cluster 13,Redfern Travel Ltd,85739,79.56,REDFERN TRAVEL INVOICE WEEK 29,BD1 3AZ,Programme
Food Standards Agency,Food Standards Agency,16/07/2014,Subsistence UK,Area 3 North West England - Cluster 31,Redfern Travel Ltd,85739,79.56,REDFERN TRAVEL INVOICE WEEK 27,BD1 3AZ,Programme
Food Standards Agency,Food Standards Agency,16/07/2014,Subsistence UK,Area 5 South West England - Cluster 52,Redfern Travel Ltd,85739,79.56,REDFERN TRAVEL INVOICE WEEK 27,BD1 3AZ,Programme
Food Standards Agency,Food Standards Agency,16/07/2014,Subsistence UK,Area 5 South West England - Cluster 54,Redfern Travel Ltd,85739,79.56,REDFERN TRAVEL INVOICE WEEK 27,BD1 3AZ,Programme
Food Standards Agency,Food Standards Agency,16/07/2014,Subsistence UK,Area 6 South East England - Cluster 62,Redfern Travel Ltd,85739,79.56,REDFERN TRAVEL INVOICE WEEK 27,BD1 3AZ,Programme
Food Standards Agency,Food Standards Agency,28/07/2014,Subsistence UK,Area 4 North East England - Cluster 45,Redfern Travel Ltd,85739,76.56,REDFERN TRAVEL INVOICE WEEK 29,BD1 3AZ,Programme
Food Standards Agency,Food Standards Agency,28/07/2014,Subsistence UK,Animal Feed     ,Redfern Travel Ltd,85739,76.56,REDFERN TRAVEL INVOICE WEEK 29,BD1 3AZ,Admin
Food Standards Agency,Food Standards Agency,08/07/2014,Subsistence UK,Area 4 North East England - Cluster 48,Redfern Travel Ltd,83705,75.56,REDFERN TRAVEL INVOICE WEEK 26,BD1 3AZ,Programme
Food Standards Agency,Food Standards Agency,16/07/2014,Travel UK ,Area 4 North East England - Cluster 48,Redfern Travel Ltd,85739,75.41,REDFERN TRAVEL INVOICE WEEK 27,BD1 3AZ,Programme
Food Standards Agency,Food Standards Agency,28/07/2014,Subsistence UK,Area 5 South West England - Cluster 51,Redfern Travel Ltd,85739,74.78,REDFERN TRAVEL INVOICE WEEK 29,BD1 3AZ,Programme
Food Standards Agency,Food Standards Agency,28/07/2014,Subsistence UK,Area 5 South West England - Cluster 52,Redfern Travel Ltd,85739,74.78,REDFERN TRAVEL INVOICE WEEK 29,BD1 3AZ,Programme
Food Standards Agency,Food Standards Agency,02/07/2014,Subsistence UK,Area 2 Wales - Cluster 22,Redfern Travel Ltd,83351,74.56,REDFERN TRAVEL INVOICE WEEK 25,BD1 3AZ,Programme
Food Standards Agency,Food Standards Agency,16/07/2014,Subsistence UK,Area 4 North East England - Cluster 41,Redfern Travel Ltd,85739,74.40,REDFERN TRAVEL INVOICE WEEK 27,BD1 3AZ,Programme
Food Standards Agency,Food Standards Agency,16/07/2014,Subsistence UK,Area 4 North East England - Cluster 44,Redfern Travel Ltd,85739,74.40,REDFERN TRAVEL INVOICE WEEK 27,BD1 3AZ,Programme
Food Standards Agency,Food Standards Agency,16/07/2014,Subsistence UK,Area 6 South East England - Cluster 64,Redfern Travel Ltd,85739,74.40,REDFERN TRAVEL INVOICE WEEK 27,BD1 3AZ,Programme
Food Standards Agency,Food Standards Agency,08/07/2014,Subsistence UK,Non Meat Field Ops,Redfern Travel Ltd,83705,73.56,REDFERN TRAVEL INVOICE WEEK 26,BD1 3AZ,Programme
Food Standards Agency,Food Standards Agency,02/07/2014,Subsistence UK,Area 5 South West England - Cluster 53,Redfern Travel Ltd,83351,71.56,REDFERN TRAVEL INVOICE WEEK 25,BD1 3AZ,Programme
Food Standards Agency,Food Standards Agency,28/07/2014,Subsistence UK,Analysis & Research Branch,Redfern Travel Ltd,85739,70.61,REDFERN TRAVEL INVOICE WEEK 29,BD1 3AZ,Admin
Food Standards Agency,Food Standards Agency,16/07/2014,Subsistence UK,Area 5 South West England - Cluster 53,Redfern Travel Ltd,85739,70.56,REDFERN TRAVEL INVOICE WEEK 27,BD1 3AZ,Programme
Food Standards Agency,Food Standards Agency,08/07/2014,Subsistence UK,Area 4 North East England - Cluster 47,Redfern Travel Ltd,83705,70.06,REDFERN TRAVEL INVOICE WEEK 26,BD1 3AZ,Programme
Food Standards Agency,Food Standards Agency,28/07/2014,Travel UK ,Area 6 South East England - Cluster 64,Redfern Travel Ltd,85739,69.46,REDFERN TRAVEL INVOICE WEEK 29,BD1 3AZ,Programme
Food Standards Agency,Food Standards Agency,16/07/2014,Travel UK ,Area 1 Scotland - Cluster 15,Redfern Travel Ltd,85739,69.45,REDFERN TRAVEL INVOICE WEEK 27,BD1 3AZ,Programme
Food Standards Agency,Food Standards Agency,08/07/2014,Subsistence UK,Area 5 South West England - Cluster 51,Redfern Travel Ltd,83705,68.78,REDFERN TRAVEL INVOICE WEEK 26,BD1 3AZ,Programme
Food Standards Agency,Food Standards Agency,08/07/2014,Subsistence UK,Area 5 South West England - Cluster 52,Redfern Travel Ltd,83705,68.78,REDFERN TRAVEL INVOICE WEEK 26,BD1 3AZ,Programme
Food Standards Agency,Food Standards Agency,08/07/2014,Travel UK ,Area 4 North East England - Cluster 41,Redfern Travel Ltd,83705,68.39,REDFERN TRAVEL INVOICE WEEK 26,BD1 3AZ,Programme
Food Standards Agency,Food Standards Agency,08/07/2014,Subsistence UK,Area 3 North West England - Cluster 34,Redfern Travel Ltd,83705,66.06,REDFERN TRAVEL INVOICE WEEK 26,BD1 3AZ,Programme
Food Standards Agency,Food Standards Agency,08/07/2014,Subsistence UK,Area 3 North West England - Cluster 36,Redfern Travel Ltd,83705,66.06,REDFERN TRAVEL INVOICE WEEK 26,BD1 3AZ,Programme
Food Standards Agency,Food Standards Agency,02/07/2014,Travel UK ,Chair & Deputy Chair,Redfern Travel Ltd,83351,64.66,REDFERN TRAVEL INVOICE WEEK 25,BD1 3AZ,Admin
Food Standards Agency,Food Standards Agency,02/07/2014,Travel UK ,Allergens,Redfern Travel Ltd,83351,63.88,REDFERN TRAVEL INVOICE WEEK 25,BD1 3AZ,Admin
Food Standards Agency,Food Standards Agency,28/07/2014,Subsistence UK,IT Information & Knowledge Management,Redfern Travel Ltd,85739,60.56,REDFERN TRAVEL INVOICE WEEK 29,BD1 3AZ,Admin
Food Standards Agency,Food Standards Agency,16/07/2014,Travel UK ,IT Information & Knowledge Management,Redfern Travel Ltd,85739,59.23,REDFERN TRAVEL INVOICE WEEK 27,BD1 3AZ,Admin
Food Standards Agency,Food Standards Agency,16/07/2014,Subsistence UK,Area 4 North East England - Cluster 46,Redfern Travel Ltd,85739,59.12,REDFERN TRAVEL INVOICE WEEK 27,BD1 3AZ,Programme
Food Standards Agency,Food Standards Agency,28/07/2014,Travel UK ,Official Feed & Foods Controls Policy Unit,Redfern Travel Ltd,85739,58.55,REDFERN TRAVEL INVOICE WEEK 29,BD1 3AZ,Admin
Food Standards Agency,Food Standards Agency,10/07/2014,Fixed Assets Additions,Operations Assurance,Capita Secure Information Solutions Ltd,93682817,58.00,PO 417063 FSA-413 K2,SN14 0TW,Capital
Food Standards Agency,Food Standards Agency,28/07/2014,Travel UK ,Area 4 North East England - Cluster 47,Redfern Travel Ltd,85739,57.69,REDFERN TRAVEL INVOICE WEEK 29,BD1 3AZ,Programme
Food Standards Agency,Food Standards Agency,08/07/2014,Subsistence UK,Area 6 South East England - Cluster 61,Redfern Travel Ltd,83705,56.86,REDFERN TRAVEL INVOICE WEEK 26,BD1 3AZ,Programme
Food Standards Agency,Food Standards Agency,08/07/2014,Subsistence UK,Area 5 South West England - Cluster 55,Redfern Travel Ltd,83705,56.56,REDFERN TRAVEL INVOICE WEEK 26,BD1 3AZ,Programme
Food Standards Agency,Food Standards Agency,02/07/2014,Travel UK ,Area 4 North East England - Cluster 44,Redfern Travel Ltd,83351,55.76,REDFERN TRAVEL INVOICE WEEK 25,BD1 3AZ,Programme
Food Standards Agency,Food Standards Agency,28/07/2014,Travel UK ,Area 4 North East England - Cluster 44,Redfern Travel Ltd,85739,54.51,REDFERN TRAVEL INVOICE WEEK 29,BD1 3AZ,Programme
Food Standards Agency,Food Standards Agency,28/07/2014,Travel UK ,Area 6 South East England - Cluster 65,Redfern Travel Ltd,85739,54.22,REDFERN TRAVEL INVOICE WEEK 29,BD1 3AZ,Programme
Food Standards Agency,Food Standards Agency,28/07/2014,Travel UK ,Area 5 South West England - Cluster 54,Redfern Travel Ltd,85739,52.82,REDFERN TRAVEL INVOICE WEEK 29,BD1 3AZ,Programme
Food Standards Agency,Food Standards Agency,16/07/2014,Travel UK ,Area 5 South West England - Cluster 51,Redfern Travel Ltd,85739,50.10,REDFERN TRAVEL INVOICE WEEK 27,BD1 3AZ,Programme
Food Standards Agency,Food Standards Agency,28/07/2014,Travel UK ,Area 2 Wales - Cluster 21,Redfern Travel Ltd,85739,49.93,REDFERN TRAVEL INVOICE WEEK 29,BD1 3AZ,Programme
Food Standards Agency,Food Standards Agency,08/07/2014,Travel UK ,Chief Executive & Private Office,Redfern Travel Ltd,83705,46.82,REDFERN TRAVEL INVOICE WEEK 26,BD1 3AZ,Admin
Food Standards Agency,Food Standards Agency,02/07/2014,Travel UK ,Area 2 Wales - Cluster 22,Redfern Travel Ltd,83351,45.55,REDFERN TRAVEL INVOICE WEEK 25,BD1 3AZ,Programme
Food Standards Agency,Food Standards Agency,28/07/2014,Travel UK ,Analysis & Research Branch,Redfern Travel Ltd,85739,43.89,REDFERN TRAVEL INVOICE WEEK 29,BD1 3AZ,Admin
Food Standards Agency,Food Standards Agency,08/07/2014,Subsistence UK,HR,Redfern Travel Ltd,83705,43.13,REDFERN TRAVEL INVOICE WEEK 26,BD1 3AZ,Admin
Food Standards Agency,Food Standards Agency,02/07/2014,Travel UK ,Area 6 South East England - Cluster 64,Redfern Travel Ltd,83351,43.12,REDFERN TRAVEL INVOICE WEEK 25,BD1 3AZ,Programme
Food Standards Agency,Food Standards Agency,08/07/2014,Travel UK ,Area 6 South East England - Cluster 61,Redfern Travel Ltd,83705,40.98,REDFERN TRAVEL INVOICE WEEK 26,BD1 3AZ,Programme
Food Standards Agency,Food Standards Agency,10/07/2014,Fixed Assets Additions,Operations Assurance,Capita Secure Information Solutions Ltd,93682817,39.60,PO 417063 FSA-413 K2,SN14 0TW,Capital
Food Standards Agency,Food Standards Agency,02/07/2014,Travel UK ,Area 6 South East England - Cluster 65,Redfern Travel Ltd,83351,39.04,REDFERN TRAVEL INVOICE WEEK 25,BD1 3AZ,Programme
Food Standards Agency,Food Standards Agency,08/07/2014,Travel UK ,Area 6 South East England - Cluster 66,Redfern Travel Ltd,83705,39.04,REDFERN TRAVEL INVOICE WEEK 26,BD1 3AZ,Programme
Food Standards Agency,Food Standards Agency,08/07/2014,Car hire expenses (short term),Planning and Performance,Redfern Travel Ltd,83705,38.88,REDFERN TRAVEL INVOICE WEEK 26,BD1 3AZ,Admin
Food Standards Agency,Food Standards Agency,02/07/2014,Fixed Assets Additions,IT Strategy,Capita Secure Information Solutions Ltd,93682771,37.00,PO 417065 CHARGES PHASE 3 MILESTONE 1,SN14 0TW,Capital
Food Standards Agency,Food Standards Agency,28/07/2014,Travel UK ,Area 4 North East England - Cluster 48,Redfern Travel Ltd,85739,34.80,REDFERN TRAVEL INVOICE WEEK 29,BD1 3AZ,Programme
Food Standards Agency,Food Standards Agency,28/07/2014,Travel UK ,Area 1 Scotland - Cluster 11,Redfern Travel Ltd,85739,29.34,REDFERN TRAVEL INVOICE WEEK 29,BD1 3AZ,Programme
Food Standards Agency,Food Standards Agency,02/07/2014,Fixed Assets Additions,IT Strategy,Capita Secure Information Solutions Ltd,93682771,29.00,PO 417065 CHARGES PHASE 3 MILESTONE 1,SN14 0TW,Capital
Food Standards Agency,Food Standards Agency,16/07/2014,Travel UK ,Area 4 North East England - Cluster 44,Redfern Travel Ltd,85739,27.88,REDFERN TRAVEL INVOICE WEEK 27,BD1 3AZ,Programme
Food Standards Agency,Food Standards Agency,02/07/2014,Fixed Assets Additions,IT Strategy,Capita Secure Information Solutions Ltd,93682771,21.80,PO 417065 CHARGES PHASE 3 MILESTONE 1,SN14 0TW,Capital
Food Standards Agency,Food Standards Agency,08/07/2014,Travel UK ,Hygiene & Microbiology Division HoD,Redfern Travel Ltd,83705,21.30,REDFERN TRAVEL INVOICE WEEK 26,BD1 3AZ,Admin
Food Standards Agency,Food Standards Agency,02/07/2014,Travel UK ,Internal Audit,Redfern Travel Ltd,83351,19.35,REDFERN TRAVEL INVOICE WEEK 25,BD1 3AZ,Admin
Food Standards Agency,Food Standards Agency,08/07/2014,Travel UK ,Area 6 South East England - Cluster 65,Redfern Travel Ltd,83705,19.02,REDFERN TRAVEL INVOICE WEEK 26,BD1 3AZ,Programme
Food Standards Agency,Food Standards Agency,02/07/2014,Fixed Assets Additions,IT Strategy,Capita Secure Information Solutions Ltd,93682771,15.00,PO 417065 CHARGES PHASE 3 MILESTONE 1,SN14 0TW,Capital
Food Standards Agency,Food Standards Agency,10/07/2014,Fixed Assets Additions,Operations Assurance,Capita Secure Information Solutions Ltd,93682817,12.00,PO 417063 FSA-413 K2,SN14 0TW,Capital
Food Standards Agency,Food Standards Agency,10/07/2014,Fixed Assets Additions,Operations Assurance,Capita Secure Information Solutions Ltd,93682817,11.60,PO 417063 FSA-413 K2,SN14 0TW,Capital
Food Standards Agency,Food Standards Agency,16/07/2014,Travel UK ,Contaminants Policy & Strategy Unit,Redfern Travel Ltd,85739,10.63,REDFERN TRAVEL INVOICE WEEK 27,BD1 3AZ,Admin
Food Standards Agency,Food Standards Agency,02/07/2014,Fixed Assets Additions,IT Strategy,Capita Secure Information Solutions Ltd,93682771,7.40,PO 417065 CHARGES PHASE 3 MILESTONE 1,SN14 0TW,Capital
Food Standards Agency,Food Standards Agency,02/07/2014,Fixed Assets Additions,IT Strategy,Capita Secure Information Solutions Ltd,93682771,5.80,PO 417065 CHARGES PHASE 3 MILESTONE 1,SN14 0TW,Capital
Food Standards Agency,Food Standards Agency,16/07/2014,Subsistence EC,Additives,Redfern Travel Ltd,85739,4.68,REDFERN TRAVEL INVOICE WEEK 27,BD1 3AZ,Admin
Food Standards Agency,Food Standards Agency,02/07/2014,Subsistence UK,Animal Feed Branch,Redfern Travel Ltd,83351,3.12,REDFERN TRAVEL INVOICE WEEK 25,BD1 3AZ,Admin
Food Standards Agency,Food Standards Agency,16/07/2014,Subsistence UK,Better Regulations & Sustainable Development,Redfern Travel Ltd,85739,3.12,REDFERN TRAVEL INVOICE WEEK 27,BD1 3AZ,Admin
Food Standards Agency,Food Standards Agency,02/07/2014,Fixed Assets Additions,IT Strategy,Capita Secure Information Solutions Ltd,93682771,3.00,PO 417065 CHARGES PHASE 3 MILESTONE 1,SN14 0TW,Capital
Food Standards Agency,Food Standards Agency,10/07/2014,Fixed Assets Additions,Operations Assurance,Capita Secure Information Solutions Ltd,93682817,2.40,PO 417063 FSA-413 K2,SN14 0TW,Capital
Food Standards Agency,Food Standards Agency,08/07/2014,Subsistence EC,Animal Feed Branch,Redfern Travel Ltd,83705,2.28,REDFERN TRAVEL INVOICE WEEK 26,BD1 3AZ,Admin
Food Standards Agency,Food Standards Agency,02/07/2014,Subsistence UK,Area 3 North West England - Cluster 32,Redfern Travel Ltd,83351,1.56,REDFERN TRAVEL INVOICE WEEK 25,BD1 3AZ,Programme
Food Standards Agency,Food Standards Agency,02/07/2014,Subsistence UK,Area 3 North West England - Cluster 33,Redfern Travel Ltd,83351,1.56,REDFERN TRAVEL INVOICE WEEK 25,BD1 3AZ,Programme
Food Standards Agency,Food Standards Agency,02/07/2014,Subsistence UK,Area 3 North West England - Cluster 34,Redfern Travel Ltd,83351,1.56,REDFERN TRAVEL INVOICE WEEK 25,BD1 3AZ,Programme
Food Standards Agency,Food Standards Agency,02/07/2014,Subsistence UK,Area 3 North West England - Cluster 35,Redfern Travel Ltd,83351,1.56,REDFERN TRAVEL INVOICE WEEK 25,BD1 3AZ,Programme
Food Standards Agency,Food Standards Agency,02/07/2014,Subsistence UK,Area 3 North West England - Cluster 36,Redfern Travel Ltd,83351,1.56,REDFERN TRAVEL INVOICE WEEK 25,BD1 3AZ,Programme
Food Standards Agency,Food Standards Agency,02/07/2014,Subsistence UK,Chief Executive & Private Office,Redfern Travel Ltd,83351,1.56,REDFERN TRAVEL INVOICE WEEK 25,BD1 3AZ,Admin
Food Standards Agency,Food Standards Agency,02/07/2014,Subsistence EC,Official Feed & Foods Controls Policy Unit,Redfern Travel Ltd,83351,1.56,REDFERN TRAVEL INVOICE WEEK 25,BD1 3AZ,Admin
Food Standards Agency,Food Standards Agency,02/07/2014,Subsistence EC,Non Meat Field Ops,Redfern Travel Ltd,83351,1.56,REDFERN TRAVEL INVOICE WEEK 25,BD1 3AZ,Programme
Food Standards Agency,Food Standards Agency,28/07/2014,Subsistence UK,Operations Assurance,Redfern Travel Ltd,85739,1.56,REDFERN TRAVEL INVOICE WEEK 29,BD1 3AZ,Programme
Food Standards Agency,Food Standards Agency,02/07/2014,Subsistence UK,Operations Assurance - Admin,Redfern Travel Ltd,83351,1.56,REDFERN TRAVEL INVOICE WEEK 25,BD1 3AZ,Admin
Food Standards Agency,Food Standards Agency,02/07/2014,Subsistence EC,Contaminants Policy & Strategy Unit,Redfern Travel Ltd,83351,1.56,REDFERN TRAVEL INVOICE WEEK 25,BD1 3AZ,Admin
Food Standards Agency,Food Standards Agency,16/07/2014,Subsistence UK,Food Production Branch,Redfern Travel Ltd,85739,1.56,REDFERN TRAVEL INVOICE WEEK 27,BD1 3AZ,Admin
Food Standards Agency,Food Standards Agency,08/07/2014,Subsistence UK,Food Hygiene Policy Branch,Redfern Travel Ltd,83705,1.56,REDFERN TRAVEL INVOICE WEEK 26,BD1 3AZ,Admin
Food Standards Agency,Food Standards Agency,28/07/2014,International Subsistence,European & International Strategy,Redfern Travel Ltd,85739,1.56,REDFERN TRAVEL INVOICE WEEK 29,BD1 3AZ,Admin
Food Standards Agency,Food Standards Agency,16/07/2014,Subsistence EC,European & International Strategy,Redfern Travel Ltd,85739,1.56,REDFERN TRAVEL INVOICE WEEK 27,BD1 3AZ,Admin
Food Standards Agency,Food Standards Agency,02/07/2014,Subsistence UK,Better Regulations & Sustainable Development,Redfern Travel Ltd,83351,1.56,REDFERN TRAVEL INVOICE WEEK 25,BD1 3AZ,Admin
Food Standards Agency,Food Standards Agency,28/07/2014,Subsistence UK,IT HoD,Redfern Travel Ltd,85739,1.56,REDFERN TRAVEL INVOICE WEEK 29,BD1 3AZ,Admin
Food Standards Agency,Food Standards Agency,02/07/2014,Subsistence EC,Operations Local Delivery ,Redfern Travel Ltd,83351,0.78,REDFERN TRAVEL INVOICE WEEK 25,BD1 3AZ,Admin
Food Standards Agency,Food Standards Agency,02/07/2014,Subsistence EC,Foodborne Diseases Branch,Redfern Travel Ltd,83351,0.78,REDFERN TRAVEL INVOICE WEEK 25,BD1 3AZ,Admin
Food Standards Agency,Food Standards Agency,02/07/2014,International Travel,Analysis & Research Branch,Redfern Travel Ltd,83351,0.50,REDFERN TRAVEL INVOICE WEEK 25,BD1 3AZ,Admin
Food Standards Agency,Food Standards Agency,18/07/2014,Laundry,Operational Delivery,Apparelmaster UK Ltd,54814,0.06,PO 417042 REGION 546 NEW CONTRACT 25/05/14-28/06/14,PR2 9ZD,Programme
Food Standards Agency,Food Standards Agency,30/07/2014,Fixed Assets Additions,IT Strategy,Capita Secure Information Solutions Ltd,93792688,-0.01,PO 414917 EDRMS PROJECT,SN14 0TW,Capital
Food Standards Agency,Food Standards Agency,16/07/2014,International Travel,Area 4 North East England - Cluster 42,Redfern Travel Ltd,85739,-7.46,REDFERN TRAVEL INVOICE WEEK 27,BD1 3AZ,Programme
Food Standards Agency,Food Standards Agency,28/07/2014,Travel UK ,Hygiene & Microbiology Division HoD,Redfern Travel Ltd,85739,-15.27,REDFERN TRAVEL INVOICE WEEK 29,BD1 3AZ,Admin
Food Standards Agency,Food Standards Agency,16/07/2014,Travel UK ,Area 4 North East England - Cluster 46,Redfern Travel Ltd,85739,-19.59,REDFERN TRAVEL INVOICE WEEK 27,BD1 3AZ,Programme
Food Standards Agency,Food Standards Agency,16/07/2014,Travel UK ,Area 3 North West England - Cluster 31,Redfern Travel Ltd,85739,-46.60,REDFERN TRAVEL INVOICE WEEK 27,BD1 3AZ,Programme
Food Standards Agency,Food Standards Agency,08/07/2014,Travel UK ,Area 4 North East England - Cluster 44,Redfern Travel Ltd,83705,-60.00,REDFERN TRAVEL INVOICE WEEK 26,BD1 3AZ,Programme
Food Standards Agency,Food Standards Agency,16/07/2014,Travel UK ,Procurement,Redfern Travel Ltd,85739,-194.42,REDFERN TRAVEL INVOICE WEEK 27,BD1 3AZ,Admin
Food Standards Agency,Food Standards Agency,02/07/2014,Subsistence UK,Legal Branch A,Redfern Travel Ltd,83351,-325.87,REDFERN TRAVEL INVOICE WEEK 25,BD1 3AZ,Admin
Food Standards Agency,Food Standards Agency,16/07/2014,Travel Lump sum,Procurement,Redfern Travel Ltd,85739,"-2,072.48",REDFERN TRAVEL INVOICE WEEK 27,BD1 3AZ,Admin
Food Standards Agency,Food Standards Agency,18/07/2014,Laundry,Operational Delivery,Apparelmaster UK Ltd,54814,"-3,570.04",PO 417042 REGION 546 NEW CONTRACT 25/05/14-28/06/14,PR2 9ZD,Programme
"Date Run: 18-AUG-14 08.46.03 AM --- Company Code : '17, 18' , Payment Start Date : '01-JUL-2014' , Payment End Date : '31-JUL-2014'",,,,,,,,,,
